Workbook

Sheet Notes
B2: Mental Health Friends and Family Test (FFT) data - November 2021 | H2: Show data for:

Sheet Summary
B3: FFT | C3: Number of organisations submitting | D3: Total responses to date | E3: Responses | G3: Percentage Positive | I3: Percentage Negative
C4: 2021-11-01 | D4: 2021-11-01 | E4: 2021-11-01 | F4: 2021-10-27 | G4: 2021-11-01 | H4: 2021-10-27 | I4: 2021-11-01 | J4: 2021-10-27
B5: Mental Health Overall | C5: 68 | D5: 1364171 | E5: 16985 | F5: 15214 | G5: 0.8575802178 | H5: 0.8705140003 | I5: 0.06923756256 | J5: 0.0609307217
B6: Primary Care | C6: 36 | D6: 234283 | E6: 2424 | F6: 1975 | G6: 0.8795379538 | H6: 0.9063291139 | I6: 0.06353135314 | J6: 0.04556962025
B7: Secondary Care Community Services | C7: 48 | D7: 498659 | E7: 6391 | F7: 5577 | G7: 0.8375841026 | H7: 0.8646225569 | I7: 0.08950086059 | J7: 0.07082660929
B8: Acute Services | C8: 42 | D8: 213906 | E8: 2431 | F8: 2275 | G8: 0.8292883587 | H8: 0.8307692308 | I8: 0.0649938297 | J8: 0.06901098901
B9: Specialist Services | C9: 41 | D9: 111858 | E9: 1597 | F9: 1321 | G9: 0.9085785848 | H9: 0.9114307343 | I9: 0.04445835942 | J9: 0.04844814534
B10: Secure and Forensic Services | C10: 26 | D10: 50830 | E10: 876 | F10: 843 | G10: 0.8436073059 | H10: 0.8754448399 | I10: 0.05821917808 | J10: 0.04507710558
B11: Child and Adolescent Mental Health Services | C11: 46 | D11: 164250 | E11: 1917 | F11: 1898 | G11: 0.871152843 | H11: 0.8587987355 | I11: 0.06311945749 | J11: 0.06533192835
B12: Mental Health Other | C12: 36 | D12: 90385 | E12: 1349 | F12: 1325 | G12: 0.8932542624 | H12: 0.8830188679 | I12: 0.03632320237 | J12: 0.04452830189

Sheet STP
A3: STP Code | B3: STP Name | C3: Total Responses | D3: Total Eligible | E3: Percentage Positive | F3: Percentage Negative | G3: Breakdown of Responses
G4: Very Good | H4: Good | I4: Neither Good nor Poor | J4: Poor | K4: Very Poor | L4: Don't Know
B5: England (including Independent Sector Providers) | C5: 16985 | D5: 765177 | E5: 0.8575802178 | F5: 0.06923756256 | G5: 10668 | H5: 3898 | I5: 915 | J5: 457 | K5: 719 | L5: 328
B6: England (excluding Independent Sector Providers) | C6: 16364 | D6: 756545 | E6: 0.8558420924 | F6: 0.0706428746 | G6: 10241 | H6: 3764 | I6: 885 | J6: 446 | K6: 710 | L6: 318
B7: Selection (excluding suppressed data) | C7: =SUBTOTAL(9,C8:C100) -> 16985 | D7: =SUBTOTAL(9,D8:D100) -> 765177 | E7: =IFERROR((G7+H7)/SUM(G7:L7), "-") -> 0.8575802178 | F7: =IFERROR((J7+K7)/SUM(G7:L7), "-") -> 0.06923756256 | G7: =SUBTOTAL(9,G8:G100) -> 10668 | H7: 3898 | I7: 915 | J7: 457 | K7: 719 | L7: 328
A8: QE1 | B8: HEALTHIER LANCASHIRE AND SOUTH CUMBRIA | C8: 872 | D8: 35111 | E8: 0.9701834862 | F8: 0.009174311927 | G8: 719 | H8: 127 | I8: 18 | J8: 4 | K8: 4 | L8: 0
A9: QF7 | B9: SOUTH YORKSHIRE AND BASSETLAW STP | C9: 225 | D9: 28172 | E9: 0.9333333333 | F9: 0.02222222222 | G9: 156 | H9: 54 | I9: 10 | J9: 3 | K9: 2 | L9: 0
A10: QGH | B10: HEREFORDSHIRE AND WORCESTERSHIRE STP | C10: 35 | D10: 4183 | E10: 0.4857142857 | F10: 0.4571428571 | G10: 12 | H10: 5 | I10: 2 | J10: 6 | K10: 10 | L10: 0
A11: QH8 | B11: MID AND SOUTH ESSEX STP | C11: 13 | D11: 11710 | E11: 1 | F11: 0 | G11: 13 | H11: 0 | I11: 0 | J11: 0 | K11: 0 | L11: 0
A12: QHL | B12: BIRMINGHAM AND SOLIHULL STP | C12: 0 | D12: 0 | E12: NA | F12: NA | G12: 0 | H12: 0 | I12: 0 | J12: 0 | K12: 0 | L12: 0
A13: QHM | B13: CUMBRIA AND NORTH EAST STP | C13: 934 | D13: 141976 | E13: 0.8907922912 | F13: 0.04389721627 | G13: 585 | H13: 247 | I13: 45 | J13: 19 | K13: 22 | L13: 16
A14: QJ2 | B14: JOINED UP CARE DERBYSHIRE STP | C14: 381 | D14: 16539 | E14: 0.9028871391 | F14: 0.03412073491 | G14: 286 | H14: 58 | I14: 10 | J14: 4 | K14: 9 | L14: 14
A15: QJM | B15: LINCOLNSHIRE STP | C15: 479 | D15: 4363 | E15: 0.8893528184 | F15: 0.02922755741 | G15: 285 | H15: 141 | I15: 31 | J15: 5 | K15: 9 | L15: 8
A16: QK1 | B16: LEICESTER, LEICESTERSHIRE AND RUTLAND STP | C16: 942 | D16: 21914 | E16: 0.6719745223 | F16: 0.2091295117 | G16: 464 | H16: 169 | I16: 71 | J16: 61 | K16: 136 | L16: 41
A17: QKK | B17: OUR HEALTHIER SOUTH EAST LONDON STP | C17: 1131 | D17: 45611 | E17: 0.7771883289 | F17: 0.09725906278 | G17: 575 | H17: 304 | I17: 124 | J17: 55 | K17: 55 | L17: 18
A18: QKS | B18: KENT AND MEDWAY STP | C18: 641 | D18: 15840 | E18: 0.8783151326 | F18: 0.02964118565 | G18: 370 | H18: 193 | I18: 31 | J18: 10 | K18: 9 | L18: 28
A19: QM7 | B19: HERTFORDSHIRE AND WEST ESSEX STP | C19: 287 | D19: 13552 | E19: 0.8954703833 | F19: 0.06271777003 | G19: 179 | H19: 78 | I19: 9 | J19: 8 | K19: 10 | L19: 3
A20: QMF | B20: EAST LONDON HEALTH & CARE PARTNERSHIP (STP) | C20: 753 | D20: 57556 | E20: 0.7981407703 | F20: 0.08499335989 | G20: 386 | H20: 215 | I20: 69 | J20: 25 | K20: 39 | L20: 19
A21: QMJ | B21: NORTH LONDON PARTNERS IN HEALTH & CARE (STP) | C21: 1120 | D21: 35866 | E21: 0.8910714286 | F21: 0.04107142857 | G21: 629 | H21: 369 | I21: 62 | J21: 18 | K21: 28 | L21: 14
A22: QMM | B22: NORFOLK AND WAVENEY HEALTH & CARE PARTNERSHIP (STP) | C22: 277 | D22: 27971 | E22: 0.5992779783 | F22: 0.2635379061 | G22: 121 | H22: 45 | I22: 31 | J22: 22 | K22: 51 | L22: 7
A23: QNC | B23: STAFFORDSHIRE & STOKE ON TRENT STP | C23: 419 | D23: 36306 | E23: 0.8591885442 | F23: 0.0477326969 | G23: 285 | H23: 75 | I23: 31 | J23: 3 | K23: 17 | L23: 8
A24: QNQ | B24: FRIMLEY HEALTH & CARE (STP) | C24: 785 | D24: 6048 | E24: 0.8229299363 | F24: 0.1070063694 | G24: 444 | H24: 202 | I24: 47 | J24: 28 | K24: 56 | L24: 8
A25: QNX | B25: SUSSEX HEALTH AND CARE PARTNERSHIP | C25: 162 | D25: 11589 | E25: 0.7654320988 | F25: 0.1234567901 | G25: 80 | H25: 44 | I25: 14 | J25: 11 | K25: 9 | L25: 4
A26: QOP | B26: GREATER MANCHESTER HEALTH & SOCIAL CARE PARTNERSHIP | C26: 1069 | D26: 30887 | E26: 0.8662301216 | F26: 0.06922357343 | G26: 687 | H26: 239 | I26: 57 | J26: 30 | K26: 44 | L26: 12
A27: QOQ | B27: HUMBER, COAST AND VALE STP | C27: 115 | D27: 4192 | E27: 0.9217391304 | F27: 0.02608695652 | G27: 80 | H27: 26 | I27: 5 | J27: 2 | K27: 1 | L27: 1
A28: QOX | B28: BATH AND NORTH EAST SOMERSET, SWINDON AND WILTSHIRE STP | C28: 374 | D28: 6184 | E28: 0.8743315508 | F28: 0.03743315508 | G28: 220 | H28: 107 | I28: 20 | J28: 10 | K28: 4 | L28: 13
A29: QPM | B29: NORTHAMPTONSHIRE STP | C29: 517 | D29: 6869 | E29: 0.920696325 | F29: 0.03481624758 | G29: 414 | H29: 62 | I29: 6 | J29: 1 | K29: 17 | L29: 17
A30: QR1 | B30: GLOUCESTERSHIRE STP | C30: 154 | D30: 3422 | E30: 0.9155844156 | F30: 0.01948051948 | G30: 104 | H30: 37 | I30: 8 | J30: 1 | K30: 2 | L30: 2
A31: QRL | B31: HAMPSHIRE AND THE ISLE OF WIGHT STP | C31: 484 | D31: 15165 | E31: 0.9834710744 | F31: 0 | G31: 399 | H31: 77 | I31: 3 | J31: 0 | K31: 0 | L31: 5
A32: QRV | B32: NORTH WEST LONDON HEALTH & CARE PARTNERSHIP (STP) | C32: 160 | D32: 7683 | E32: 0.925 | F32: 0.0375 | G32: 124 | H32: 24 | I32: 6 | J32: 4 | K32: 2 | L32: 0
A33: QSL | B33: SOMERSET STP | C33: 59 | D33: 6851 | E33: 0.9661016949 | F33: 0 | G33: 37 | H33: 20 | I33: 2 | J33: 0 | K33: 0 | L33: 0
A34: QT1 | B34: NOTTINGHAM AND NOTTINGHAMSHIRE HEALTH AND CARE STP | C34: 113 | D34: 17139 | E34: 0.6902654867 | F34: 0.2212389381 | G34: 55 | H34: 23 | I34: 8 | J34: 10 | K34: 15 | L34: 2
A35: QT6 | B35: CORNWALL AND THE ISLES OF SCILLY HEALTH & SOCIAL CARE PARTNERSHIP (STP) | C35: 9 | D35: 4495 | E35: 1 | F35: 0 | G35: 4 | H35: 5 | I35: 0 | J35: 0 | K35: 0 | L35: 0
A36: QU9 | B36: BUCKINGHAMSHIRE, OXFORDSHIRE AND BERKSHIRE WEST STP | C36: 134 | D36: 13581 | E36: 0.8880597015 | F36: 0.07462686567 | G36: 91 | H36: 28 | I36: 4 | J36: 3 | K36: 7 | L36: 1
A37: QUA | B37: THE BLACK COUNTRY AND WEST BIRMINGHAM STP | C37: 415 | D37: 37398 | E37: 0.9180722892 | F37: 0.03373493976 | G37: 294 | H37: 87 | I37: 16 | J37: 7 | K37: 7 | L37: 4
A38: QUE | B38: CAMBRIDGESHIRE AND PETERBOROUGH STP | C38: 230 | D38: 2398 | E38: 0.9 | F38: 0.0347826087 | G38: 139 | H38: 68 | I38: 9 | J38: 2 | K38: 6 | L38: 6
A39: QVV | B39: DORSET STP | C39: 397 | D39: 7754 | E39: 0.8715365239 | F39: 0.06549118388 | G39: 241 | H39: 105 | I39: 17 | J39: 12 | K39: 14 | L39: 8
A40: QWE | B40: SOUTH WEST LONDON HEALTH & CARE PARTNERSHIP (STP) | C40: 580 | D40: 19125 | E40: 0.8137931034 | F40: 0.1051724138 | G40: 381 | H40: 91 | I40: 20 | J40: 20 | K40: 41 | L40: 27
A41: QWO | B41: WEST YORKSHIRE AND HARROGATE HEALTH & CARE PARTNERSHIP (STP) | C41: 1014 | D41: 29316 | E41: 0.83234714 | F41: 0.0966469428 | G41: 662 | H41: 182 | I41: 53 | J41: 43 | K41: 55 | L41: 19
A42: QWU | B42: COVENTRY AND WARWICKSHIRE STP | C42: 0 | D42: 0 | E42: NA | F42: NA | G42: 0 | H42: 0 | I42: 0 | J42: 0 | K42: 0 | L42: 0
A43: QXU | B43: SURREY HEARTLANDS HEALTH & CARE PARTNERSHIP (STP) | C43: 239 | D43: 9190 | E43: 0.949790795 | F43: 0.01673640167 | G43: 169 | H43: 58 | I43: 5 | J43: 2 | K43: 2 | L43: 3
A44: QYG | B44: CHESHIRE AND MERSEYSIDE STP | C44: 845 | D44: 20589 | E44: 0.8875739645 | F44: 0.05207100592 | G44: 551 | H44: 199 | I44: 41 | J44: 17 | K44: 27 | L44: 10
A45: IS1 | B45: Independent Sector Providers | C45: 621 | D45: 8632 | E45: 0.9033816425 | F45: 0.03220611916 | G45: 427 | H45: 134 | I45: 30 | J45: 11 | K45: 9 | L45: 10

Sheet Trusts
A3: STP Code | B3: Trust Code | C3: Trust Name | D3: Total Responses | E3: Total Eligible | F3: Percentage Positive | G3: Percentage Negative | H3: Breakdown of Responses | N3: Mode of Collection
H4: Very Good | I4: Good | J4: Neither Good nor Poor | K4: Poor | L4: Very Poor | M4: Don't Know | N4: Mode SMS | O4: Mode Electronic Discharge | P4: Mode Electronic Home | Q4: Mode Paper Discharge | R4: Mode Paper Home | S4: Mode Telephone | T4: Mode Online | U4: Mode Other
C5: England (including Independent Sector Providers) | D5: 16985 | E5: 765177 | F5: 0.8575802178 | G5: 0.06923756256 | H5: 10668 | I5: 3898 | J5: 915 | K5: 457 | L5: 719 | M5: 328 | N5: 2820 | O5: 1543 | P5: 230 | Q5: 3559 | R5: 1735 | S5: 58 | T5: 5464 | U5: 1576
C6: England (excluding Independent Sector Providers) | D6: 16364 | E6: 756545 | F6: 0.8558420924 | G6: 0.0706428746 | H6: 10241 | I6: 3764 | J6: 885 | K6: 446 | L6: 710 | M6: 318 | N6: 2792 | O6: 1543 | P6: 223 | Q6: 3417 | R6: 1728 | S6: 58 | T6: 5346 | U6: 1257
C7: Selection (excluding suppressed data) | D7: =SUBTOTAL(9,D8:D193) -> 16985 | E7: =SUBTOTAL(9,E8:E193) -> 765177 | F7: =IFERROR((H7+I7)/SUM(H7:M7), "-") -> 0.85720258 | G7: =IFERROR((K7+L7)/SUM(H7:M7), "-") -> 0.0694577162 | H7: =SUBTOTAL(9,H8:H193) -> 10507 | I7: 3846 | J7: 908 | K7: 447 | L7: 716 | M7: 320 | N7: 2820 | O7: 1474 | P7: 226 | Q7: 3471 | R7: 1680 | S7: 51 | T7: 5446 | U7: 1576
A8: QE1 | B8: RXL | C8: BLACKPOOL TEACHING HOSPITALS NHS FOUNDATION TRUST | D8: 54 | E8: 1113 | F8: 1 | G8: 0 | H8: 42 | I8: 12 | J8: 0 | K8: 0 | L8: 0 | M8: 0 | N8: 0 | O8: 0 | P8: 0 | Q8: 34 | R8: 0 | S8: 0 | T8: 20 | U8: =IF(VLOOKUP($B8,[1]TrustCalcs!$B:$H,7,0)=1,"*",VLOOKUP($B8,'[1]Collection Mode'!$C:$O, 13, 0)) -> 0
A9: QE1 | B9: RW5 | C9: LANCASHIRE & SOUTH CUMBRIA NHS FOUNDATION TRUST | D9: 818 | E9: 33998 | F9: 0.9682151589 | G9: 0.0097799511 | H9: 677 | I9: 115 | J9: 18 | K9: 4 | L9: 4 | M9: 0 | N9: 0 | O9: 0 | P9: 0 | Q9: 1 | R9: 0 | S9: 0 | T9: 817 | U9: =IF(VLOOKUP($B9,[1]TrustCalcs!$B:$H,7,0)=1,"*",VLOOKUP($B9,'[1]Collection Mode'!$C:$O, 13, 0)) -> 0
A10: QF7 | B10: RXE | C10: ROTHERHAM DONCASTER AND SOUTH HUMBER NHS FOUNDATION TRUST | D10: 86 | E10: 19470 | F10: 0.9302325581 | G10: 0.02325581395 | H10: * | I10: * | J10: * | K10: * | L10: * | M10: * | N10: * | O10: * | P10: * | Q10: * | R10: * | S10: * | T10: * | U10: =IF(VLOOKUP($B10,[1]TrustCalcs!$B:$H,7,0)=1,"*",VLOOKUP($B10,'[1]Collection Mode'!$C:$O, 13, 0)) -> *
A11: QF7 | B11: RCU | C11: SHEFFIELD CHILDREN'S NHS FOUNDATION TRUST | D11: 1 | E11: 990 | F11: * | G11: * | H11: * | I11: * | J11: * | K11: * | L11: * | M11: * | N11: * | O11: * | P11: * | Q11: * | R11: * | S11: * | T11: * | U11: =IF(VLOOKUP($B11,[1]TrustCalcs!$B:$H,7,0)=1,"*",VLOOKUP($B11,'[1]Collection Mode'!$C:$O, 13, 0)) -> *
A12: QF7 | B12: TAH | C12: SHEFFIELD HEALTH & SOCIAL CARE NHS FOUNDATION TRUST | D12: 138 | E12: 7712 | F12: 0.9420289855 | G12: 0.01449275362 | H12: 89 | I12: 41 | J12: 6 | K12: 2 | L12: 0 | M12: 0 | N12: 0 | O12: 0 | P12: 0 | Q12: 138 | R12: 0 | S12: 0 | T12: 0 | U12: =IF(VLOOKUP($B12,[1]TrustCalcs!$B:$H,7,0)=1,"*",VLOOKUP($B12,'[1]Collection Mode'!$C:$O, 13, 0)) -> 0
A13: QGH | B13: R1A | C13: HEREFORDSHIRE AND WORCESTERSHIRE HEALTH AND CARE NHS TRUST | D13: 35 | E13: 4183 | F13: 0.4857142857 | G13: 0.4571428571 | H13: 12 | I13: 5 | J13: 2 | K13: 6 | L13: 10 | M13: 0 | N13: 35 | O13: 0 | P13: 0 | Q13: 0 | R13: 0 | S13: 0 | T13: 0 | U13: =IF(VLOOKUP($B13,[1]TrustCalcs!$B:$H,7,0)=1,"*",VLOOKUP($B13,'[1]Collection Mode'!$C:$O, 13, 0)) -> 0
A14: QH8 | B14: R1L | C14: ESSEX PARTNERSHIP UNIVERSITY NHS FOUNDATION TRUST | D14: 13 | E14: 11710 | F14: 1 | G14: 0 | H14: 13 | I14: 0 | J14: 0 | K14: 0 | L14: 0 | M14: 0 | N14: 0 | O14: 0 | P14: 0 | Q14: 2 | R14: 0 | S14: 0 | T14: 11 | U14: =IF(VLOOKUP($B14,[1]TrustCalcs!$B:$H,7,0)=1,"*",VLOOKUP($B14,'[1]Collection Mode'!$C:$O, 13, 0)) -> 0
A15: QHM | B15: RX4 | C15: CUMBRIA, NORTHUMBERLAND, TYNE AND WEAR NHS FOUNDATION TRUST | D15: 226 | E15: 35259 | F15: 0.8539823009 | G15: 0.09292035398 | H15: 145 | I15: 48 | J15: 12 | K15: 5 | L15: 16 | M15: 0 | N15: 0 | O15: 0 | P15: 0 | Q15: 153 | R15: 0 | S15: 0 | T15: 0 | U15: =IF(VLOOKUP($B15,[1]TrustCalcs!$B:$H,7,0)=1,"*",VLOOKUP($B15,'[1]Collection Mode'!$C:$O, 13, 0)) -> 73
A16: QHM | B16: RR7 | C16: GATESHEAD HEALTH NHS FOUNDATION TRUST | D16: 0 | E16: 133 | F16: NA | G16: NA | H16: 0 | I16: 0 | J16: 0 | K16: 0 | L16: 0 | M16: 0 | N16: 0 | O16: 0 | P16: 0 | Q16: 0 | R16: 0 | S16: 0 | T16: 0 | U16: =IF(VLOOKUP($B16,[1]TrustCalcs!$B:$H,7,0)=1,"*",VLOOKUP($B16,'[1]Collection Mode'!$C:$O, 13, 0)) -> 0
A17: QHM | B17: RTF | C17: NORTHUMBRIA HEALTHCARE NHS FOUNDATION TRUST | D17: 0 | E17: 997 | F17: NA | G17: NA | H17: 0 | I17: 0 | J17: 0 | K17: 0 | L17: 0 | M17: 0 | N17: 0 | O17: 0 | P17: 0 | Q17: 0 | R17: 0 | S17: 0 | T17: 0 | U17: =IF(VLOOKUP($B17,[1]TrustCalcs!$B:$H,7,0)=1,"*",VLOOKUP($B17,'[1]Collection Mode'!$C:$O, 13, 0)) -> 0
A18: QHM | B18: R0B | C18: SOUTH TYNESIDE AND SUNDERLAND NHS FOUNDATION TRUST | D18: 6 | E18: 1492 | F18: 1 | G18: 0 | H18: 5 | I18: 1 | J18: 0 | K18: 0 | L18: 0 | M18: 0 | N18: 0 | O18: 0 | P18: 0 | Q18: 0 | R18: 6 | S18: 0 | T18: 0 | U18: =IF(VLOOKUP($B18,[1]TrustCalcs!$B:$H,7,0)=1,"*",VLOOKUP($B18,'[1]Collection Mode'!$C:$O, 13, 0)) -> 0
A19: QHM | B19: RX3 | C19: TEES, ESK AND WEAR VALLEYS NHS FOUNDATION TRUST | D19: 702 | E19: 104095 | F19: 0.9017094017 | G19: 0.02849002849 | H19: 435 | I19: 198 | J19: 33 | K19: 14 | L19: 6 | M19: 16 | N19: 32 | O19: 151 | P19: 0 | Q19: 491 | R19: 0 | S19: 0 | T19: 28 | U19: =IF(VLOOKUP($B19,[1]TrustCalcs!$B:$H,7,0)=1,"*",VLOOKUP($B19,'[1]Collection Mode'!$C:$O, 13, 0)) -> 0
A20: QJ2 | B20: RXM | C20: DERBYSHIRE HEALTHCARE NHS FOUNDATION TRUST | D20: 381 | E20: 16539 | F20: 0.9028871391 | G20: 0.03412073491 | H20: 286 | I20: 58 | J20: 10 | K20: 4 | L20: 9 | M20: 14 | N20: 44 | O20: 0 | P20: 0 | Q20: 178 | R20: 0 | S20: 0 | T20: 159 | U20: =IF(VLOOKUP($B20,[1]TrustCalcs!$B:$H,7,0)=1,"*",VLOOKUP($B20,'[1]Collection Mode'!$C:$O, 13, 0)) -> 0
A21: QJM | B21: RP7 | C21: LINCOLNSHIRE PARTNERSHIP NHS FOUNDATION TRUST | D21: 479 | E21: 4363 | F21: 0.8893528184 | G21: 0.02922755741 | H21: 285 | I21: 141 | J21: 31 | K21: 5 | L21: 9 | M21: 8 | N21: 13 | O21: 51 | P21: 0 | Q21: 415 | R21: 0 | S21: 0 | T21: 0 | U21: =IF(VLOOKUP($B21,[1]TrustCalcs!$B:$H,7,0)=1,"*",VLOOKUP($B21,'[1]Collection Mode'!$C:$O, 13, 0)) -> 0
A22: QK1 | B22: RT5 | C22: LEICESTERSHIRE PARTNERSHIP NHS TRUST | D22: 942 | E22: 21914 | F22: 0.6719745223 | G22: 0.2091295117 | H22: 464 | I22: 169 | J22: 71 | K22: 61 | L22: 136 | M22: 41 | N22: 776 | O22: 59 | P22: 0 | Q22: 0 | R22: 0 | S22: 51 | T22: 56 | U22: =IF(VLOOKUP($B22,[1]TrustCalcs!$B:$H,7,0)=1,"*",VLOOKUP($B22,'[1]Collection Mode'!$C:$O, 13, 0)) -> 0
A23: QKK | B23: RPG | C23: OXLEAS NHS FOUNDATION TRUST | D23: 616 | E23: 8947 | F23: 0.6996753247 | G23: 0.1428571429 | H23: 290 | I23: 141 | J23: 85 | K23: 39 | L23: 49 | M23: 12 | N23: 254 | O23: 83 | P23: 83 | Q23: 98 | R23: 97 | S23: 0 | T23: 0 | U23: =IF(VLOOKUP($B23,[1]TrustCalcs!$B:$H,7,0)=1,"*",VLOOKUP($B23,'[1]Collection Mode'!$C:$O, 13, 0)) -> 1
A24: QKK | B24: RV5 | C24: SOUTH LONDON AND MAUDSLEY NHS FOUNDATION TRUST | D24: 515 | E24: 36664 | F24: 0.8699029126 | G24: 0.0427184466 | H24: 285 | I24: 163 | J24: 39 | K24: 16 | L24: 6 | M24: 6 | N24: 0 | O24: 142 | P24: 0 | Q24: 83 | R24: 0 | S24: 0 | T24: 290 | U24: =IF(VLOOKUP($B24,[1]TrustCalcs!$B:$H,7,0)=1,"*",VLOOKUP($B24,'[1]Collection Mode'!$C:$O, 13, 0)) -> 0
A25: QKS | B25: RXY | C25: KENT AND MEDWAY NHS AND SOCIAL CARE PARTNERSHIP TRUST | D25: 641 | E25: 15840 | F25: 0.8783151326 | G25: 0.02964118565 | H25: 370 | I25: 193 | J25: 31 | K25: 10 | L25: 9 | M25: 28 | N25: 0 | O25: 0 | P25: 0 | Q25: 628 | R25: 0 | S25: 0 | T25: 13 | U25: =IF(VLOOKUP($B25,[1]TrustCalcs!$B:$H,7,0)=1,"*",VLOOKUP($B25,'[1]Collection Mode'!$C:$O, 13, 0)) -> 0
A26: QM7 | B26: RY4 | C26: HERTFORDSHIRE COMMUNITY NHS TRUST | D26: 39 | E26: 739 | F26: 0.9487179487 | G26: 0.02564102564 | H26: 31 | I26: 6 | J26: 1 | K26: 1 | L26: 0 | M26: 0 | N26: 34 | O26: 0 | P26: 0 | Q26: 5 | R26: 0 | S26: 0 | T26: 0 | U26: =IF(VLOOKUP($B26,[1]TrustCalcs!$B:$H,7,0)=1,"*",VLOOKUP($B26,'[1]Collection Mode'!$C:$O, 13, 0)) -> 0
A27: QM7 | B27: RWR | C27: HERTFORDSHIRE PARTNERSHIP UNIVERSITY NHS FOUNDATION TRUST | D27: 248 | E27: 12813 | F27: 0.8870967742 | G27: 0.0685483871 | H27: 148 | I27: 72 | J27: 8 | K27: 7 | L27: 10 | M27: 3 | N27: 0 | O27: 3 | P27: 0 | Q27: 0 | R27: 144 | S27: 0 | T27: 101 | U27: =IF(VLOOKUP($B27,[1]TrustCalcs!$B:$H,7,0)=1,"*",VLOOKUP($B27,'[1]Collection Mode'!$C:$O, 13, 0)) -> 0
A28: QMF | B28: RWK | C28: EAST LONDON NHS FOUNDATION TRUST | D28: 316 | E28: 35049 | F28: 0.8132911392 | G28: 0.07911392405 | H28: 145 | I28: 112 | J28: 26 | K28: 4 | L28: 21 | M28: 8 | N28: 3 | O28: 43 | P28: 0 | Q28: 0 | R28: 0 | S28: 0 | T28: 225 | U28: =IF(VLOOKUP($B28,[1]TrustCalcs!$B:$H,7,0)=1,"*",VLOOKUP($B28,'[1]Collection Mode'!$C:$O, 13, 0)) -> 45
A29: QMF | B29: RAT | C29: NORTH EAST LONDON NHS FOUNDATION TRUST | D29: 437 | E29: 22507 | F29: 0.7871853547 | G29: 0.08924485126 | H29: 241 | I29: 103 | J29: 43 | K29: 21 | L29: 18 | M29: 11 | N29: 0 | O29: 0 | P29: 0 | Q29: 0 | R29: 0 | S29: 0 | T29: 437 | U29: =IF(VLOOKUP($B29,[1]TrustCalcs!$B:$H,7,0)=1,"*",VLOOKUP($B29,'[1]Collection Mode'!$C:$O, 13, 0)) -> 0
A30: QMJ | B30: RRP | C30: BARNET, ENFIELD AND HARINGEY MENTAL HEALTH NHS TRUST | D30: 619 | E30: 8139 | F30: 0.9418416801 | G30: 0.01453957997 | H30: 342 | I30: 241 | J30: 27 | K30: 0 | L30: 9 | M30: 0 | N30: 0 | O30: 12 | P30: 0 | Q30: 0 | R30: 0 | S30: 0 | T30: 607 | U30: =IF(VLOOKUP($B30,[1]TrustCalcs!$B:$H,7,0)=1,"*",VLOOKUP($B30,'[1]Collection Mode'!$C:$O, 13, 0)) -> 0
A31: QMJ | B31: TAF | C31: CAMDEN AND ISLINGTON NHS FOUNDATION TRUST | D31: 207 | E31: 1827 | F31: 0.8937198068 | G31: 0.05797101449 | H31: 134 | I31: 51 | J31: 6 | K31: 6 | L31: 6 | M31: 4 | N31: 0 | O31: 1 | P31: 0 | Q31: 0 | R31: 28 | S31: 0 | T31: 178 | U31: =IF(VLOOKUP($B31,[1]TrustCalcs!$B:$H,7,0)=1,"*",VLOOKUP($B31,'[1]Collection Mode'!$C:$O, 13, 0)) -> 0
A32: QMJ | B32: RV3 | C32: CENTRAL AND NORTH WEST LONDON NHS FOUNDATION TRUST | D32: 235 | E32: 22797 | F32: 0.7659574468 | G32: 0.09787234043 | H32: 119 | I32: 61 | J32: 29 | K32: 10 | L32: 13 | M32: 3 | N32: 0 | O32: 0 | P32: 0 | Q32: 0 | R32: 99 | S32: 0 | T32: 136 | U32: =IF(VLOOKUP($B32,[1]TrustCalcs!$B:$H,7,0)=1,"*",VLOOKUP($B32,'[1]Collection Mode'!$C:$O, 13, 0)) -> 0
A33: QMJ | B33: RAL | C33: ROYAL FREE LONDON NHS FOUNDATION TRUST | D33: 0 | E33: 0 | F33: NA | G33: NA | H33: 0 | I33: 0 | J33: 0 | K33: 0 | L33: 0 | M33: 0 | N33: 0 | O33: 0 | P33: 0 | Q33: 0 | R33: 0 | S33: 0 | T33: 0 | U33: =IF(VLOOKUP($B33,[1]TrustCalcs!$B:$H,7,0)=1,"*",VLOOKUP($B33,'[1]Collection Mode'!$C:$O, 13, 0)) -> 0
A34: QMJ | B34: RNK | C34: TAVISTOCK AND PORTMAN NHS FOUNDATION TRUST | D34: 55 | E34: 3099 | F34: 0.8363636364 | G34: 0.03636363636 | H34: * | I34: * | J34: * | K34: * | L34: * | M34: * | N34: * | O34: * | P34: * | Q34: * | R34: * | S34: * | T34: * | U34: =IF(VLOOKUP($B34,[1]TrustCalcs!$B:$H,7,0)=1,"*",VLOOKUP($B34,'[1]Collection Mode'!$C:$O, 13, 0)) -> *
A35: QMJ | B35: RRV | C35: UNIVERSITY COLLEGE LONDON HOSPITALS NHS FOUNDATION TRUST | D35: 4 | E35: 4 | F35: * | G35: * | H35: * | I35: * | J35: * | K35: * | L35: * | M35: * | N35: * | O35: * | P35: * | Q35: * | R35: * | S35: * | T35: * | U35: =IF(VLOOKUP($B35,[1]TrustCalcs!$B:$H,7,0)=1,"*",VLOOKUP($B35,'[1]Collection Mode'!$C:$O, 13, 0)) -> *
A36: QMM | B36: RMY | C36: NORFOLK AND SUFFOLK NHS FOUNDATION TRUST | D36: 277 | E36: 27971 | F36: 0.5992779783 | G36: 0.2635379061 | H36: 121 | I36: 45 | J36: 31 | K36: 22 | L36: 51 | M36: 7 | N36: 0 | O36: 0 | P36: 0 | Q36: 0 | R36: 0 | S36: 0 | T36: 0 | U36: =IF(VLOOKUP($B36,[1]TrustCalcs!$B:$H,7,0)=1,"*",VLOOKUP($B36,'[1]Collection Mode'!$C:$O, 13, 0)) -> 277
A37: QNC | B37: RRE | C37: MIDLANDS PARTNERSHIP NHS FOUNDATION TRUST | D37: 297 | E37: 20651 | F37: 0.8484848485 | G37: 0.05387205387 | H37: 187 | I37: 65 | J37: 27 | K37: 3 | L37: 13 | M37: 2 | N37: 0 | O37: 0 | P37: 5 | Q37: 0 | R37: 0 | S37: 0 | T37: 292 | U37: =IF(VLOOKUP($B37,[1]TrustCalcs!$B:$H,7,0)=1,"*",VLOOKUP($B37,'[1]Collection Mode'!$C:$O, 13, 0)) -> 0
A38: QNC | B38: RLY | C38: NORTH STAFFORDSHIRE COMBINED HEALTHCARE NHS TRUST | D38: 122 | E38: 15655 | F38: 0.8852459016 | G38: 0.03278688525 | H38: 98 | I38: 10 | J38: 4 | K38: 0 | L38: 4 | M38: 6 | N38: 0 | O38: 0 | P38: 0 | Q38: 0 | R38: 75 | S38: 0 | T38: 47 | U38: =IF(VLOOKUP($B38,[1]TrustCalcs!$B:$H,7,0)=1,"*",VLOOKUP($B38,'[1]Collection Mode'!$C:$O, 13, 0)) -> 0
A39: QNQ | B39: RWX | C39: BERKSHIRE HEALTHCARE NHS FOUNDATION TRUST | D39: 785 | E39: 6048 | F39: 0.8229299363 | G39: 0.1070063694 | H39: 444 | I39: 202 | J39: 47 | K39: 28 | L39: 56 | M39: 8 | N39: 167 | O39: 0 | P39: 110 | Q39: 0 | R39: 10 | S39: 0 | T39: 498 | U39: =IF(VLOOKUP($B39,[1]TrustCalcs!$B:$H,7,0)=1,"*",VLOOKUP($B39,'[1]Collection Mode'!$C:$O, 13, 0)) -> 0
A40: QNX | B40: RX2 | C40: SUSSEX PARTNERSHIP NHS FOUNDATION TRUST | D40: 162 | E40: 11589 | F40: 0.7654320988 | G40: 0.1234567901 | H40: 80 | I40: 44 | J40: 14 | K40: 11 | L40: 9 | M40: 4 | N40: 0 | O40: 0 | P40: 0 | Q40: 0 | R40: 0 | S40: 0 | T40: 162 | U40: =IF(VLOOKUP($B40,[1]TrustCalcs!$B:$H,7,0)=1,"*",VLOOKUP($B40,'[1]Collection Mode'!$C:$O, 13, 0)) -> 0
A41: QOP | B41: RXV | C41: GREATER MANCHESTER MENTAL HEALTH NHS FOUNDATION TRUST | D41: 552 | E41: 21161 | F41: 0.8333333333 | G41: 0.09239130435 | H41: 358 | I41: 102 | J41: 34 | K41: 18 | L41: 33 | M41: 7 | N41: 0 | O41: 0 | P41: 0 | Q41: 0 | R41: 0 | S41: 0 | T41: 0 | U41: =IF(VLOOKUP($B41,[1]TrustCalcs!$B:$H,7,0)=1,"*",VLOOKUP($B41,'[1]Collection Mode'!$C:$O, 13, 0)) -> 552
A42: QOP | B42: RT2 | C42: PENNINE CARE NHS FOUNDATION TRUST | D42: 517 | E42: 9726 | F42: 0.9013539652 | G42: 0.04448742747 | H42: 329 | I42: 137 | J42: 23 | K42: 12 | L42: 11 | M42: 5 | N42: 237 | O42: 0 | P42: 0 | Q42: 244 | R42: 0 | S42: 0 | T42: 36 | U42: =IF(VLOOKUP($B42,[1]TrustCalcs!$B:$H,7,0)=1,"*",VLOOKUP($B42,'[1]Collection Mode'!$C:$O, 13, 0)) -> 0
A43: QOQ | B43: RV9 | C43: HUMBER TEACHING NHS FOUNDATION TRUST | D43: 115 | E43: 4192 | F43: 0.9217391304 | G43: 0.02608695652 | H43: 80 | I43: 26 | J43: 5 | K43: 2 | L43: 1 | M43: 1 | N43: 0 | O43: 0 | P43: 0 | Q43: 115 | R43: 0 | S43: 0 | T43: 0 | U43: =IF(VLOOKUP($B43,[1]TrustCalcs!$B:$H,7,0)=1,"*",VLOOKUP($B43,'[1]Collection Mode'!$C:$O, 13, 0)) -> 0
A44: QOX | B44: RVN | C44: AVON AND WILTSHIRE MENTAL HEALTH PARTNERSHIP NHS TRUST | D44: 374 | E44: 6184 | F44: 0.8743315508 | G44: 0.03743315508 | H44: 220 | I44: 107 | J44: 20 | K44: 10 | L44: 4 | M44: 13 | N44: 0 | O44: 0 | P44: 0 | Q44: 75 | R44: 282 | S44: 0 | T44: 17 | U44: =IF(VLOOKUP($B44,[1]TrustCalcs!$B:$H,7,0)=1,"*",VLOOKUP($B44,'[1]Collection Mode'!$C:$O, 13, 0)) -> 0
A45: QPM | B45: RP1 | C45: NORTHAMPTONSHIRE HEALTHCARE NHS FOUNDATION TRUST | D45: 517 | E45: 6869 | F45: 0.920696325 | G45: 0.03481624758 | H45: 414 | I45: 62 | J45: 6 | K45: 1 | L45: 17 | M45: 17 | N45: 0 | O45: 0 | P45: 21 | Q45: 0 | R45: 445 | S45: 0 | T45: 51 | U45: =IF(VLOOKUP($B45,[1]TrustCalcs!$B:$H,7,0)=1,"*",VLOOKUP($B45,'[1]Collection Mode'!$C:$O, 13, 0)) -> 0
A46: QR1 | B46: RTQ | C46: GLOUCESTERSHIRE HEALTH AND CARE NHS FOUNDATION TRUST | D46: 154 | E46: 3422 | F46: 0.9155844156 | G46: 0.01948051948 | H46: 104 | I46: 37 | J46: 8 | K46: 1 | L46: 2 | M46: 2 | N46: 0 | O46: 0 | P46: 0 | Q46: 0 | R46: 0 | S46: 0 | T46: 154 | U46: =IF(VLOOKUP($B46,[1]TrustCalcs!$B:$H,7,0)=1,"*",VLOOKUP($B46,'[1]Collection Mode'!$C:$O, 13, 0)) -> 0
A47: QRL | B47: R1F | C47: ISLE OF WIGHT NHS TRUST | D47: 32 | E47: 1966 | F47: 1 | G47: 0 | H47: 26 | I47: 6 | J47: 0 | K47: 0 | L47: 0 | M47: 0 | N47: 0 | O47: 0 | P47: 0 | Q47: 0 | R47: 32 | S47: 0 | T47: 0 | U47: =IF(VLOOKUP($B47,[1]TrustCalcs!$B:$H,7,0)=1,"*",VLOOKUP($B47,'[1]Collection Mode'!$C:$O, 13, 0)) -> 0
A48: QRL | B48: R1C | C48: SOLENT NHS TRUST | D48: 173 | E48: 1799 | F48: 0.9595375723 | G48: 0 | H48: 97 | I48: 69 | J48: 3 | K48: 0 | L48: 0 | M48: 4 | N48: 2 | O48: 0 | P48: 0 | Q48: 139 | R48: 0 | S48: 0 | T48: 32 | U48: =IF(VLOOKUP($B48,[1]TrustCalcs!$B:$H,7,0)=1,"*",VLOOKUP($B48,'[1]Collection Mode'!$C:$O, 13, 0)) -> 0
A49: QRL | B49: RW1 | C49: SOUTHERN HEALTH NHS FOUNDATION TRUST | D49: 279 | E49: 11400 | F49: 0.9964157706 | G49: 0 | H49: 276 | I49: 2 | J49: 0 | K49: 0 | L49: 0 | M49: 1 | N49: 0 | O49: 0 | P49: 0 | Q49: 0 | R49: 83 | S49: 0 | T49: 196 | U49: =IF(VLOOKUP($B49,[1]TrustCalcs!$B:$H,7,0)=1,"*",VLOOKUP($B49,'[1]Collection Mode'!$C:$O, 13, 0)) -> 0
A50: QRV | B50: RKL | C50: WEST LONDON NHS TRUST | D50: 160 | E50: 7683 | F50: 0.925 | G50: 0.0375 | H50: 124 | I50: 24 | J50: 6 | K50: 4 | L50: 2 | M50: 0 | N50: 0 | O50: 0 | P50: 0 | Q50: 115 | R50: 29 | S50: 0 | T50: 16 | U50: =IF(VLOOKUP($B50,[1]TrustCalcs!$B:$H,7,0)=1,"*",VLOOKUP($B50,'[1]Collection Mode'!$C:$O, 13, 0)) -> 0
A51: QSL | B51: RH5 | C51: SOMERSET NHS FOUNDATION TRUST | D51: 59 | E51: 6851 | F51: 0.9661016949 | G51: 0 | H51: 37 | I51: 20 | J51: 2 | K51: 0 | L51: 0 | M51: 0 | N51: 0 | O51: 0 | P51: 0 | Q51: 0 | R51: 0 | S51: 0 | T51: 59 | U51: =IF(VLOOKUP($B51,[1]TrustCalcs!$B:$H,7,0)=1,"*",VLOOKUP($B51,'[1]Collection Mode'!$C:$O, 13, 0)) -> 0
A52: QT1 | B52: RHA | C52: NOTTINGHAMSHIRE HEALTHCARE NHS FOUNDATION TRUST | D52: 113 | E52: 17139 | F52: 0.6902654867 | G52: 0.2212389381 | H52: 55 | I52: 23 | J52: 8 | K52: 10 | L52: 15 | M52: 2 | N52: 0 | O52: 0 | P52: 0 | Q52: 0 | R52: 113 | S52: 0 | T52: 0 | U52: =IF(VLOOKUP($B52,[1]TrustCalcs!$B:$H,7,0)=1,"*",VLOOKUP($B52,'[1]Collection Mode'!$C:$O, 13, 0)) -> 0
A53: QT6 | B53: RJ8 | C53: CORNWALL PARTNERSHIP NHS FOUNDATION TRUST | D53: 9 | E53: 4495 | F53: 1 | G53: 0 | H53: 4 | I53: 5 | J53: 0 | K53: 0 | L53: 0 | M53: 0 | N53: 0 | O53: 0 | P53: 0 | Q53: 1 | R53: 0 | S53: 0 | T53: 8 | U53: =IF(VLOOKUP($B53,[1]TrustCalcs!$B:$H,7,0)=1,"*",VLOOKUP($B53,'[1]Collection Mode'!$C:$O, 13, 0)) -> 0
A54: QU9 | B54: RNU | C54: OXFORD HEALTH NHS FOUNDATION TRUST | D54: 134 | E54: 13581 | F54: 0.8880597015 | G54: 0.07462686567 | H54: 91 | I54: 28 | J54: 4 | K54: 3 | L54: 7 | M54: 1 | N54: 0 | O54: 75 | P54: 0 | Q54: 25 | R54: 0 | S54: 0 | T54: 34 | U54: =IF(VLOOKUP($B54,[1]TrustCalcs!$B:$H,7,0)=1,"*",VLOOKUP($B54,'[1]Collection Mode'!$C:$O, 13, 0)) -> 0
A55: QUA | B55: RXT | C55: BIRMINGHAM AND SOLIHULL MENTAL HEALTH NHS FOUNDATION TRUST | D55: 163 | E55: 18233 | F55: 0.8036809816 | G55: 0.08588957055 | H55: 78 | I55: 53 | J55: 16 | K55: 7 | L55: 7 | M55: 2 | N55: 0 | O55: 0 | P55: 0 | Q55: 150 | R55: 0 | S55: 0 | T55: 13 | U55: =IF(VLOOKUP($B55,[1]TrustCalcs!$B:$H,7,0)=1,"*",VLOOKUP($B55,'[1]Collection Mode'!$C:$O, 13, 0)) -> 0
A56: QUA | B56: TAJ | C56: BLACK COUNTRY HEALTHCARE NHS FOUNDATION TRUST | D56: 218 | E56: 17541 | F56: 0.995412844 | G56: 0 | H56: 190 | I56: 27 | J56: 0 | K56: 0 | L56: 0 | M56: 1 | N56: 0 | O56: 0 | P56: 0 | Q56: 0 | R56: 0 | S56: 0 | T56: 0 | U56: =IF(VLOOKUP($B56,[1]TrustCalcs!$B:$H,7,0)=1,"*",VLOOKUP($B56,'[1]Collection Mode'!$C:$O, 13, 0)) -> 218
A57: QUA | B57: RYK | C57: DUDLEY INTEGRATED HEALTH AND CARE NHS TRUST | D57: 34 | E57: 1624 | F57: 0.9705882353 | G57: 0 | H57: 26 | I57: 7 | J57: 0 | K57: 0 | L57: 0 | M57: 1 | N57: 0 | O57: 0 | P57: 0 | Q57: 0 | R57: 0 | S57: 0 | T57: 0 | U57: =IF(VLOOKUP($B57,[1]TrustCalcs!$B:$H,7,0)=1,"*",VLOOKUP($B57,'[1]Collection Mode'!$C:$O, 13, 0)) -> 34
A58: QUE | B58: RT1 | C58: CAMBRIDGESHIRE AND PETERBOROUGH NHS FOUNDATION TRUST | D58: 230 | E58: 2398 | F58: 0.9 | G58: 0.0347826087 | H58: 139 | I58: 68 | J58: 9 | K58: 2 | L58: 6 | M58: 6 | N58: 12 | O58: 73 | P58: 0 | Q58: 0 | R58: 101 | S58: 0 | T58: 42 | U58: =IF(VLOOKUP($B58,[1]TrustCalcs!$B:$H,7,0)=1,"*",VLOOKUP($B58,'[1]Collection Mode'!$C:$O, 13, 0)) -> 2
A59: QVV | B59: RDY | C59: DORSET HEALTHCARE UNIVERSITY NHS FOUNDATION TRUST | D59: 397 | E59: 7754 | F59: 0.8715365239 | G59: 0.06549118388 | H59: 241 | I59: 105 | J59: 17 | K59: 12 | L59: 14 | M59: 8 | N59: 40 | O59: 18 | P59: 0 | Q59: 0 | R59: 41 | S59: 0 | T59: 298 | U59: =IF(VLOOKUP($B59,[1]TrustCalcs!$B:$H,7,0)=1,"*",VLOOKUP($B59,'[1]Collection Mode'!$C:$O, 13, 0)) -> 0
A60: QWE | B60: RQY | C60: SOUTH WEST LONDON AND ST GEORGE'S MENTAL HEALTH NHS TRUST | D60: 580 | E60: 19125 | F60: 0.8137931034 | G60: 0.1051724138 | H60: 381 | I60: 91 | J60: 20 | K60: 20 | L60: 41 | M60: 27 | N60: 257 | O60: 268 | P60: 0 | Q60: 0 | R60: 0 | S60: 0 | T60: 0 | U60: =IF(VLOOKUP($B60,[1]TrustCalcs!$B:$H,7,0)=1,"*",VLOOKUP($B60,'[1]Collection Mode'!$C:$O, 13, 0)) -> 55
A61: QWO | B61: TAD | C61: BRADFORD DISTRICT CARE NHS FOUNDATION TRUST | D61: 94 | E61: 9024 | F61: 0.8723404255 | G61: 0.08510638298 | H61: * | I61: * | J61: * | K61: * | L61: * | M61: * | N61: * | O61: * | P61: * | Q61: * | R61: * | S61: * | T61: * | U61: =IF(VLOOKUP($B61,[1]TrustCalcs!$B:$H,7,0)=1,"*",VLOOKUP($B61,'[1]Collection Mode'!$C:$O, 13, 0)) -> *
A62: QWO | B62: RGD | C62: LEEDS AND YORK PARTNERSHIP NHS FOUNDATION TRUST | D62: 142 | E62: 7625 | F62: 0.9507042254 | G62: 0.01408450704 | H62: 102 | I62: 33 | J62: 3 | K62: 2 | L62: 0 | M62: 2 | N62: 0 | O62: 0 | P62: 0 | Q62: 0 | R62: 27 | S62: 0 | T62: 115 | U62: =IF(VLOOKUP($B62,[1]TrustCalcs!$B:$H,7,0)=1,"*",VLOOKUP($B62,'[1]Collection Mode'!$C:$O, 13, 0)) -> 0
A63: QWO | B63: RY6 | C63: LEEDS COMMUNITY HEALTHCARE NHS TRUST | D63: 1 | E63: 979 | F63: * | G63: * | H63: * | I63: * | J63: * | K63: * | L63: * | M63: * | N63: * | O63: * | P63: * | Q63: * | R63: * | S63: * | T63: * | U63: =IF(VLOOKUP($B63,[1]TrustCalcs!$B:$H,7,0)=1,"*",VLOOKUP($B63,'[1]Collection Mode'!$C:$O, 13, 0)) -> *
A64: QWO | B64: RXG | C64: SOUTH WEST YORKSHIRE PARTNERSHIP NHS FOUNDATION TRUST | D64: 777 | E64: 11688 | F64: 0.8056628057 | G64: 0.1132561133 | H64: 500 | I64: 126 | J64: 47 | K64: 34 | L64: 54 | M64: 16 | N64: 594 | O64: 21 | P64: 0 | Q64: 0 | R64: 61 | S64: 0 | T64: 101 | U64: =IF(VLOOKUP($B64,[1]TrustCalcs!$B:$H,7,0)=1,"*",VLOOKUP($B64,'[1]Collection Mode'!$C:$O, 13, 0)) -> 0
A65: QWU | B65: RYG | C65: COVENTRY AND WARWICKSHIRE PARTNERSHIP NHS TRUST | D65: 0 | E65: 0 | F65: NA | G65: NA | H65: 0 | I65: 0 | J65: 0 | K65: 0 | L65: 0 | M65: 0 | N65: 0 | O65: 0 | P65: 0 | Q65: 0 | R65: 0 | S65: 0 | T65: 0 | U65: =IF(VLOOKUP($B65,[1]TrustCalcs!$B:$H,7,0)=1,"*",VLOOKUP($B65,'[1]Collection Mode'!$C:$O, 13, 0)) -> 0
A66: QXU | B66: RXX | C66: SURREY AND BORDERS PARTNERSHIP NHS FOUNDATION TRUST | D66: 239 | E66: 9190 | F66: 0.949790795 | G66: 0.01673640167 | H66: 169 | I66: 58 | J66: 5 | K66: 2 | L66: 2 | M66: 3 | N66: 0 | O66: 65 | P66: 0 | Q66: 100 | R66: 0 | S66: 0 | T66: 74 | U66: =IF(VLOOKUP($B66,[1]TrustCalcs!$B:$H,7,0)=1,"*",VLOOKUP($B66,'[1]Collection Mode'!$C:$O, 13, 0)) -> 0
A67: QYG | B67: RBS | C67: ALDER HEY CHILDREN'S NHS FOUNDATION TRUST | D67: 28 | E67: 684 | F67: 0.9642857143 | G67: 0.03571428571 | H67: 23 | I67: 4 | J67: 0 | K67: 0 | L67: 1 | M67: 0 | N67: 28 | O67: 0 | P67: 0 | Q67: 0 | R67: 0 | S67: 0 | T67: 0 | U67: =IF(VLOOKUP($B67,[1]TrustCalcs!$B:$H,7,0)=1,"*",VLOOKUP($B67,'[1]Collection Mode'!$C:$O, 13, 0)) -> 0
A68: QYG | B68: RXA | C68: CHESHIRE AND WIRRAL PARTNERSHIP NHS FOUNDATION TRUST | D68: 264 | E68: 3 | F68: 0.8901515152 | G68: 0.06439393939 | H68: 207 | I68: 28 | J68: 8 | K68: 5 | L68: 12 | M68: 4 | N68: 264 | O68: 0 | P68: 0 | Q68: 0 | R68: 0 | S68: 0 | T68: 0 | U68: =IF(VLOOKUP($B68,[1]TrustCalcs!$B:$H,7,0)=1,"*",VLOOKUP($B68,'[1]Collection Mode'!$C:$O, 13, 0)) -> 0
A69: QYG | B69: RW4 | C69: MERSEY CARE NHS FOUNDATION TRUST | D69: 553 | E69: 19902 | F69: 0.8824593128 | G69: 0.04701627486 | H69: 321 | I69: 167 | J69: 33 | K69: 12 | L69: 14 | M69: 6 | N69: 0 | O69: 409 | P69: 0 | Q69: 139 | R69: 0 | S69: 0 | T69: 5 | U69: =IF(VLOOKUP($B69,[1]TrustCalcs!$B:$H,7,0)=1,"*",VLOOKUP($B69,'[1]Collection Mode'!$C:$O, 13, 0)) -> 0
A70: IS1 | B70: NNF | C70: CITY HEALTH CARE PARTNERSHIP CIC | D70: 127 | E70: 3490 | F70: 0.9527559055 | G70: 0.0157480315 | H70: 104 | I70: 17 | J70: 3 | K70: 1 | L70: 1 | M70: 1 | N70: 0 | O70: 0 | P70: 0 | Q70: 29 | R70: 0 | S70: 0 | T70: 82 | U70: =IF(VLOOKUP($B70,[1]TrustCalcs!$B:$H,7,0)=1,"*",VLOOKUP($B70,'[1]Collection Mode'!$C:$O, 13, 0)) -> 16
A71: IS1 | B71: NDK | C71: FRESHNEY PELHAM CARE LIMITED | D71: 5 | E71: 10 | F71: 1 | G71: 0 | H71: 1 | I71: 4 | J71: 0 | K71: 0 | L71: 0 | M71: 0 | N71: 0 | O71: 0 | P71: 0 | Q71: 5 | R71: 0 | S71: 0 | T71: 0 | U71: =IF(VLOOKUP($B71,[1]TrustCalcs!$B:$H,7,0)=1,"*",VLOOKUP($B71,'[1]Collection Mode'!$C:$O, 13, 0)) -> 0
A72: IS1 | B72: NR5 | C72: LIVEWELL SOUTHWEST | D72: 172 | E72: 2108 | F72: 0.7790697674 | G72: 0.06976744186 | H72: 63 | I72: 71 | J72: 20 | K72: 7 | L72: 5 | M72: 6 | N72: 28 | O72: 0 | P72: 0 | Q72: 108 | R72: 0 | S72: 0 | T72: 36 | U72: =IF(VLOOKUP($B72,[1]TrustCalcs!$B:$H,7,0)=1,"*",VLOOKUP($B72,'[1]Collection Mode'!$C:$O, 13, 0)) -> 0
A73: IS1 | B73: NQL | C73: NAVIGO HEALTH AND SOCIAL CARE CIC | D73: 303 | E73: 2534 | F73: 0.9504950495 | G73: 0.0198019802 | H73: 251 | I73: 37 | J73: 6 | K73: 3 | L73: 3 | M73: 3 | N73: 0 | O73: 0 | P73: 0 | Q73: 0 | R73: 0 | S73: 0 | T73: 0 | U73: =IF(VLOOKUP($B73,[1]TrustCalcs!$B:$H,7,0)=1,"*",VLOOKUP($B73,'[1]Collection Mode'!$C:$O, 13, 0)) -> 303
A74: IS1 | B74: O2F3D | C74: SUTTON MENTAL HEALTH FOUNDATION | D74: 7 | E74: 33 | F74: 1 | G74: 0 | H74: 5 | I74: 2 | J74: 0 | K74: 0 | L74: 0 | M74: 0 | N74: 0 | O74: 0 | P74: 0 | Q74: 0 | R74: 7 | S74: 0 | T74: 0 | U74: =IF(VLOOKUP($B74,[1]TrustCalcs!$B:$H,7,0)=1,"*",VLOOKUP($B74,'[1]Collection Mode'!$C:$O, 13, 0)) -> 0
A75: IS1 | B75: NV2 | C75: THE HUNTERCOMBE GROUP | D75: 7 | E75: 457 | F75: 0.8571428571 | G75: 0 | H75: 3 | I75: 3 | J75: 1 | K75: 0 | L75: 0 | M75: 0 | N75: 0 | O75: 0 | P75: 7 | Q75: 0 | R75: 0 | S75: 0 | T75: 0 | U75: =IF(VLOOKUP($B75,[1]TrustCalcs!$B:$H,7,0)=1,"*",VLOOKUP($B75,'[1]Collection Mode'!$C:$O, 13, 0)) -> 0

Sheet Categories
A3: STP Code | B3: Trust Code | C3: Trust Name | D3: Service Category Provided | E3: Total Responses | F3: Percentage Positive | G3: Percentage Negative | H3: Breakdown of Responses
H4: Very Good | I4: Good | J4: Neither Good nor Poor | K4: Poor | L4: Very Poor | M4: Don't Know
D5: England (including Independent Sector Providers) | E5: 16985 | F5: 0.8575802178 | G5: 0.06923756256 | H5: 10668 | I5: 3898 | J5: 915 | K5: 457 | L5: 719 | M5: 328
D6: England (excluding Independent Sector Providers) | E6: 16364 | F6: 0.8558420924 | G6: 0.0706428746 | H6: 10241 | I6: 3764 | J6: 885 | K6: 446 | L6: 710 | M6: 318
D7: Selection (excluding suppressed data) | E7: =SUBTOTAL(9,E8:E667) -> 16985 | F7: =IFERROR((H7+I7)/SUM(H7:M7), "-") -> 0.8577732108 | G7: =IFERROR((K7+L7)/SUM(H7:M7), "-") -> 0.06957205029 | H7: =SUBTOTAL(9,H8:H667) -> 10401 | I7: 3790 | J7: 890 | K7: 441 | L7: 710 | M7: 312
A8: QE1 | B8: RXL | C8: BLACKPOOL TEACHING HOSPITALS NHS FOUNDATION TRUST | D8: Secondary Care Community Services | E8: 54 | F8: 1 | G8: 0 | H8: 42 | I8: 12 | J8: 0 | K8: 0 | L8: 0 | M8: 0
A9: QE1 | B9: RW5 | C9: LANCASHIRE & SOUTH CUMBRIA NHS FOUNDATION TRUST | D9: Acute Services | E9: 118 | F9: 0.9576271186 | G9: 0.008474576271 | H9: 86 | I9: 27 | J9: 4 | K9: 1 | L9: 0 | M9: 0
A10: QE1 | B10: RW5 | C10: LANCASHIRE & SOUTH CUMBRIA NHS FOUNDATION TRUST | D10: Child & Adolescent Mental Health Services | E10: 151 | F10: 0.9933774834 | G10: 0 | H10: 134 | I10: 16 | J10: 1 | K10: 0 | L10: 0 | M10: 0
A11: QE1 | B11: RW5 | C11: LANCASHIRE & SOUTH CUMBRIA NHS FOUNDATION TRUST | D11: Mental Health Other | E11: 4 | F11: * | G11: * | H11: * | I11: * | J11: * | K11: * | L11: * | M11: *
A12: QE1 | B12: RW5 | C12: LANCASHIRE & SOUTH CUMBRIA NHS FOUNDATION TRUST | D12: Secondary Care Community Services | E12: 280 | F12: 0.9642857143 | G12: 0.01428571429 | H12: 233 | I12: 37 | J12: 6 | K12: 2 | L12: 2 | M12: 0
A13: QE1 | B13: RW5 | C13: LANCASHIRE & SOUTH CUMBRIA NHS FOUNDATION TRUST | D13: Secure & Forensic Services | E13: 4 | F13: * | G13: * | H13: * | I13: * | J13: * | K13: * | L13: * | M13: *
A14: QE1 | B14: RW5 | C14: LANCASHIRE & SOUTH CUMBRIA NHS FOUNDATION TRUST | D14: Specialist Services | E14: 261 | F14: 0.9616858238 | G14: 0.01149425287 | H14: 218 | I14: 33 | J14: 7 | K14: 1 | L14: 2 | M14: 0
A15: QF7 | B15: RXE | C15: ROTHERHAM DONCASTER AND SOUTH HUMBER NHS FOUNDATION TRUST | D15: Acute Services | E15: 4 | F15: * | G15: * | H15: * | I15: * | J15: * | K15: * | L15: * | M15: *
A16: QF7 | B16: RXE | C16: ROTHERHAM DONCASTER AND SOUTH HUMBER NHS FOUNDATION TRUST | D16: Child & Adolescent Mental Health Services | E16: 3 | F16: * | G16: * | H16: * | I16: * | J16: * | K16: * | L16: * | M16: *
A17: QF7 | B17: RXE | C17: ROTHERHAM DONCASTER AND SOUTH HUMBER NHS FOUNDATION TRUST | D17: Primary Care | E17: 62 | F17: 0.9516129032 | G17: 0 | H17: 46 | I17: 13 | J17: 3 | K17: 0 | L17: 0 | M17: 0
A18: QF7 | B18: RXE | C18: ROTHERHAM DONCASTER AND SOUTH HUMBER NHS FOUNDATION TRUST | D18: Secondary Care Community Services | E18: 6 | F18: 1 | G18: 0 | H18: 6 | I18: 0 | J18: 0 | K18: 0 | L18: 0 | M18: 0
A19: QF7 | B19: RXE | C19: ROTHERHAM DONCASTER AND SOUTH HUMBER NHS FOUNDATION TRUST | D19: Specialist Services | E19: 11 | F19: 1 | G19: 0 | H19: 11 | I19: 0 | J19: 0 | K19: 0 | L19: 0 | M19: 0
A20: QF7 | B20: RCU | C20: SHEFFIELD CHILDREN'S NHS FOUNDATION TRUST | D20: Child & Adolescent Mental Health Services | E20: 1 | F20: * | G20: * | H20: * | I20: * | J20: * | K20: * | L20: * | M20: *
A21: QF7 | B21: TAH | C21: SHEFFIELD HEALTH & SOCIAL CARE NHS FOUNDATION TRUST | D21: Mental Health Other | E21: 36 | F21: 0.8611111111 | G21: 0.02777777778 | H21: 14 | I21: 17 | J21: 4 | K21: 1 | L21: 0 | M21: 0
A22: QF7 | B22: TAH | C22: SHEFFIELD HEALTH & SOCIAL CARE NHS FOUNDATION TRUST | D22: Secondary Care Community Services | E22: 74 | F22: 0.972972973 | G22: 0.01351351351 | H22: 57 | I22: 15 | J22: 1 | K22: 1 | L22: 0 | M22: 0
A23: QF7 | B23: TAH | C23: SHEFFIELD HEALTH & SOCIAL CARE NHS FOUNDATION TRUST | D23: Specialist Services | E23: 28 | F23: 0.9642857143 | G23: 0 | H23: 18 | I23: 9 | J23: 1 | K23: 0 | L23: 0 | M23: 0
A24: QGH | B24: R1A | C24: HEREFORDSHIRE AND WORCESTERSHIRE HEALTH AND CARE NHS TRUST | D24: Child & Adolescent Mental Health Services | E24: 6 | F24: 0.5 | G24: 0.5 | H24: 2 | I24: 1 | J24: 0 | K24: 2 | L24: 1 | M24: 0
A25: QGH | B25: R1A | C25: HEREFORDSHIRE AND WORCESTERSHIRE HEALTH AND CARE NHS TRUST | D25: Mental Health Other | E25: 1 | F25: * | G25: * | H25: * | I25: * | J25: * | K25: * | L25: * | M25: *
A26: QGH | B26: R1A | C26: HEREFORDSHIRE AND WORCESTERSHIRE HEALTH AND CARE NHS TRUST | D26: Primary Care | E26: 19 | F26: 0.4210526316 | G26: 0.4736842105 | H26: 6 | I26: 2 | J26: 2 | K26: 2 | L26: 7 | M26: 0
A27: QGH | B27: R1A | C27: HEREFORDSHIRE AND WORCESTERSHIRE HEALTH AND CARE NHS TRUST | D27: Secondary Care Community Services | E27: 7 | F27: 0.5714285714 | G27: 0.4285714286 | H27: 3 | I27: 1 | J27: 0 | K27: 1 | L27: 2 | M27: 0
A28: QGH | B28: R1A | C28: HEREFORDSHIRE AND WORCESTERSHIRE HEALTH AND CARE NHS TRUST | D28: Specialist Services | E28: 2 | F28: * | G28: * | H28: * | I28: * | J28: * | K28: * | L28: * | M28: *
A29: QH8 | B29: R1L | C29: ESSEX PARTNERSHIP UNIVERSITY NHS FOUNDATION TRUST | D29: Primary Care | E29: 1 | F29: * | G29: * | H29: * | I29: * | J29: * | K29: * | L29: * | M29: *
A30: QH8 | B30: R1L | C30: ESSEX PARTNERSHIP UNIVERSITY NHS FOUNDATION TRUST | D30: Secondary Care Community Services | E30: 12 | F30: 1 | G30: 0 | H30: * | I30: * | J30: * | K30: * | L30: * | M30: *
A31: QHM | B31: RX4 | C31: CUMBRIA, NORTHUMBERLAND, TYNE AND WEAR NHS FOUNDATION TRUST | D31: Acute Services | E31: 12 | F31: 0.5833333333 | G31: 0.3333333333 | H31: 4 | I31: 3 | J31: 1 | K31: 0 | L31: 4 | M31: 0
A32: QHM | B32: RX4 | C32: CUMBRIA, NORTHUMBERLAND, TYNE AND WEAR NHS FOUNDATION TRUST | D32: Child & Adolescent Mental Health Services | E32: 6 | F32: 1 | G32: 0 | H32: 4 | I32: 2 | J32: 0 | K32: 0 | L32: 0 | M32: 0
A33: QHM | B33: RX4 | C33: CUMBRIA, NORTHUMBERLAND, TYNE AND WEAR NHS FOUNDATION TRUST | D33: Mental Health Other | E33: 26 | F33: 0.8846153846 | G33: 0.03846153846 | H33: 22 | I33: 1 | J33: 2 | K33: 0 | L33: 1 | M33: 0
A34: QHM | B34: RX4 | C34: CUMBRIA, NORTHUMBERLAND, TYNE AND WEAR NHS FOUNDATION TRUST | D34: Secondary Care Community Services | E34: 136 | F34: 0.8308823529 | G34: 0.1029411765 | H34: 86 | I34: 27 | J34: 9 | K34: 5 | L34: 9 | M34: 0
A35: QHM | B35: RX4 | C35: CUMBRIA, NORTHUMBERLAND, TYNE AND WEAR NHS FOUNDATION TRUST | D35: Secure & Forensic Services | E35: 13 | F35: 0.9230769231 | G35: 0.07692307692 | H35: 5 | I35: 7 | J35: 0 | K35: 0 | L35: 1 | M35: 0
A36: QHM | B36: RX4 | C36: CUMBRIA, NORTHUMBERLAND, TYNE AND WEAR NHS FOUNDATION TRUST | D36: Specialist Services | E36: 33 | F36: 0.9696969697 | G36: 0.0303030303 | H36: 24 | I36: 8 | J36: 0 | K36: 0 | L36: 1 | M36: 0
A37: QHM | B37: R0B | C37: SOUTH TYNESIDE AND SUNDERLAND NHS FOUNDATION TRUST | D37: Child & Adolescent Mental Health Services | E37: 6 | F37: 1 | G37: 0 | H37: 5 | I37: 1 | J37: 0 | K37: 0 | L37: 0 | M37: 0
A38: QHM | B38: RX3 | C38: TEES, ESK AND WEAR VALLEYS NHS FOUNDATION TRUST | D38: Acute Services | E38: 134 | F38: 0.9029850746 | G38: 0.05970149254 | H38: 78 | I38: 43 | J38: 4 | K38: 6 | L38: 2 | M38: 1
A39: QHM | B39: RX3 | C39: TEES, ESK AND WEAR VALLEYS NHS FOUNDATION TRUST | D39: Child & Adolescent Mental Health Services | E39: 76 | F39: 0.9605263158 | G39: 0.01315789474 | H39: 41 | I39: 32 | J39: 0 | K39: 0 | L39: 1 | M39: 2
A40: QHM | B40: RX3 | C40: TEES, ESK AND WEAR VALLEYS NHS FOUNDATION TRUST | D40: Mental Health Other | E40: 1 | F40: * | G40: * | H40: * | I40: * | J40: * | K40: * | L40: * | M40: *
A41: QHM | B41: RX3 | C41: TEES, ESK AND WEAR VALLEYS NHS FOUNDATION TRUST | D41: Primary Care | E41: 114 | F41: 0.9210526316 | G41: 0.01754385965 | H41: 96 | I41: 9 | J41: 6 | K41: 1 | L41: 1 | M41: 1
A42: QHM | B42: RX3 | C42: TEES, ESK AND WEAR VALLEYS NHS FOUNDATION TRUST | D42: Secondary Care Community Services | E42: 251 | F42: 0.9003984064 | G42: 0.00796812749 | H42: 155 | I42: 71 | J42: 20 | K42: 1 | L42: 1 | M42: 3
A43: QHM | B43: RX3 | C43: TEES, ESK AND WEAR VALLEYS NHS FOUNDATION TRUST | D43: Secure & Forensic Services | E43: 97 | F43: 0.8350515464 | G43: 0.05154639175 | H43: 48 | I43: 33 | J43: 2 | K43: 4 | L43: 1 | M43: 9
A44: QHM | B44: RX3 | C44: TEES, ESK AND WEAR VALLEYS NHS FOUNDATION TRUST | D44: Specialist Services | E44: 29 | F44: 0.8965517241 | G44: 0.06896551724 | H44: * | I44: * | J44: * | K44: * | L44: * | M44: *
A45: QJ2 | B45: RXM | C45: DERBYSHIRE HEALTHCARE NHS FOUNDATION TRUST | D45: Acute Services | E45: 27 | F45: 0.7037037037 | G45: 0.1851851852 | H45: 13 | I45: 6 | J45: 2 | K45: 0 | L45: 5 | M45: 1
A46: QJ2 | B46: RXM | C46: DERBYSHIRE HEALTHCARE NHS FOUNDATION TRUST | D46: Child & Adolescent Mental Health Services | E46: 8 | F46: 1 | G46: 0 | H46: 6 | I46: 2 | J46: 0 | K46: 0 | L46: 0 | M46: 0
A47: QJ2 | B47: RXM | C47: DERBYSHIRE HEALTHCARE NHS FOUNDATION TRUST | D47: Mental Health Other | E47: 44 | F47: 0.6136363636 | G47: 0.09090909091 | H47: 27 | I47: 0 | J47: 3 | K47: 1 | L47: 3 | M47: 10
A48: QJ2 | B48: RXM | C48: DERBYSHIRE HEALTHCARE NHS FOUNDATION TRUST | D48: Primary Care | E48: 178 | F48: 0.9887640449 | G48: 0 | H48: 161 | I48: 15 | J48: 2 | K48: 0 | L48: 0 | M48: 0
A49: QJ2 | B49: RXM | C49: DERBYSHIRE HEALTHCARE NHS FOUNDATION TRUST | D49: Secondary Care Community Services | E49: 112 | F49: 0.9285714286 | G49: 0.02678571429 | H49: 72 | I49: 32 | J49: 3 | K49: 2 | L49: 1 | M49: 2
A50: QJ2 | B50: RXM | C50: DERBYSHIRE HEALTHCARE NHS FOUNDATION TRUST | D50: Specialist Services | E50: 12 | F50: 0.8333333333 | G50: 0.08333333333 | H50: 7 | I50: 3 | J50: 0 | K50: 1 | L50: 0 | M50: 1
A51: QJM | B51: RP7 | C51: LINCOLNSHIRE PARTNERSHIP NHS FOUNDATION TRUST | D51: Acute Services | E51: 51 | F51: 0.9019607843 | G51: 0.01960784314 | H51: * | I51: * | J51: * | K51: * | L51: * | M51: *
A52: QJM | B52: RP7 | C52: LINCOLNSHIRE PARTNERSHIP NHS FOUNDATION TRUST | D52: Child & Adolescent Mental Health Services | E52: 84 | F52: 0.869047619 | G52: 0.02380952381 | H52: 38 | I52: 35 | J52: 5 | K52: 0 | L52: 2 | M52: 4
A53: QJM | B53: RP7 | C53: LINCOLNSHIRE PARTNERSHIP NHS FOUNDATION TRUST | D53: Mental Health Other | E53: 133 | F53: 0.9323308271 | G53: 0.02255639098 | H53: 88 | I53: 36 | J53: 5 | K53: 2 | L53: 1 | M53: 1
A54: QJM | B54: RP7 | C54: LINCOLNSHIRE PARTNERSHIP NHS FOUNDATION TRUST | D54: Primary Care | E54: 74 | F54: 0.7972972973 | G54: 0.01351351351 | H54: 39 | I54: 20 | J54: 13 | K54: 0 | L54: 1 | M54: 1
A55: QJM | B55: RP7 | C55: LINCOLNSHIRE PARTNERSHIP NHS FOUNDATION TRUST | D55: Secondary Care Community Services | E55: 68 | F55: 0.8823529412 | G55: 0.07352941176 | H55: 46 | I55: 14 | J55: 2 | K55: 1 | L55: 4 | M55: 1
A56: QJM | B56: RP7 | C56: LINCOLNSHIRE PARTNERSHIP NHS FOUNDATION TRUST | D56: Secure & Forensic Services | E56: 2 | F56: * | G56: * | H56: * | I56: * | J56: * | K56: * | L56: * | M56: *
A57: QJM | B57: RP7 | C57: LINCOLNSHIRE PARTNERSHIP NHS FOUNDATION TRUST | D57: Specialist Services | E57: 67 | F57: 0.9253731343 | G57: 0.02985074627 | H57: 39 | I57: 23 | J57: 3 | K57: 1 | L57: 1 | M57: 0
A58: QK1 | B58: RT5 | C58: LEICESTERSHIRE PARTNERSHIP NHS TRUST | D58: Acute Services | E58: 65 | F58: 0.8461538462 | G58: 0.09230769231 | H58: 37 | I58: 18 | J58: 4 | K58: 2 | L58: 4 | M58: 0
A59: QK1 | B59: RT5 | C59: LEICESTERSHIRE PARTNERSHIP NHS TRUST | D59: Child & Adolescent Mental Health Services | E59: 177 | F59: 0.7005649718 | G59: 0.2146892655 | H59: 95 | I59: 29 | J59: 14 | K59: 14 | L59: 24 | M59: 1
A60: QK1 | B60: RT5 | C60: LEICESTERSHIRE PARTNERSHIP NHS TRUST | D60: Secondary Care Community Services | E60: 617 | F60: 0.6337115073 | G60: 0.226904376 | H60: 282 | I60: 109 | J60: 48 | K60: 42 | L60: 98 | M60: 38
A61: QK1 | B61: RT5 | C61: LEICESTERSHIRE PARTNERSHIP NHS TRUST | D61: Specialist Services | E61: 83 | F61: 0.7590361446 | G61: 0.156626506 | H61: 50 | I61: 13 | J61: 5 | K61: 3 | L61: 10 | M61: 2
A62: QKK | B62: RPG | C62: OXLEAS NHS FOUNDATION TRUST | D62: Acute Services | E62: 111 | F62: 0.7657657658 | G62: 0.06306306306 | H62: 45 | I62: 40 | J62: 16 | K62: 5 | L62: 2 | M62: 3
A63: QKK | B63: RPG | C63: OXLEAS NHS FOUNDATION TRUST | D63: Child & Adolescent Mental Health Services | E63: 36 | F63: 0.7222222222 | G63: 0.1666666667 | H63: 18 | I63: 8 | J63: 4 | K63: 1 | L63: 5 | M63: 0
A64: QKK | B64: RPG | C64: OXLEAS NHS FOUNDATION TRUST | D64: Primary Care | E64: 47 | F64: 0.7446808511 | G64: 0.06382978723 | H64: 30 | I64: 5 | J64: 8 | K64: 2 | L64: 1 | M64: 1
A65: QKK | B65: RPG | C65: OXLEAS NHS FOUNDATION TRUST | D65: Secondary Care Community Services | E65: 243 | F65: 0.646090535 | G65: 0.2345679012 | H65: 100 | I65: 57 | J65: 23 | K65: 24 | L65: 33 | M65: 6
A66: QKK | B66: RPG | C66: OXLEAS NHS FOUNDATION TRUST | D66: Secure & Forensic Services | E66: 94 | F66: 0.5531914894 | G66: 0.1382978723 | H66: 34 | I66: 18 | J66: 29 | K66: 6 | L66: 7 | M66: 0
A67: QKK | B67: RPG | C67: OXLEAS NHS FOUNDATION TRUST | D67: Specialist Services | E67: 85 | F67: 0.8941176471 | G67: 0.02352941176 | H67: 63 | I67: 13 | J67: 5 | K67: 1 | L67: 1 | M67: 2
A68: QKK | B68: RV5 | C68: SOUTH LONDON AND MAUDSLEY NHS FOUNDATION TRUST | D68: Acute Services | E68: 166 | F68: 0.8192771084 | G68: 0.06626506024 | H68: 61 | I68: 75 | J68: 17 | K68: 7 | L68: 4 | M68: 2
A69: QKK | B69: RV5 | C69: SOUTH LONDON AND MAUDSLEY NHS FOUNDATION TRUST | D69: Child & Adolescent Mental Health Services | E69: 53 | F69: 0.9811320755 | G69: 0.01886792453 | H69: 44 | I69: 8 | J69: 0 | K69: 1 | L69: 0 | M69: 0
A70: QKK | B70: RV5 | C70: SOUTH LONDON AND MAUDSLEY NHS FOUNDATION TRUST | D70: Primary Care | E70: 21 | F70: 0.9523809524 | G70: 0 | H70: 17 | I70: 3 | J70: 1 | K70: 0 | L70: 0 | M70: 0
A71: QKK | B71: RV5 | C71: SOUTH LONDON AND MAUDSLEY NHS FOUNDATION TRUST | D71: Secondary Care Community Services | E71: 234 | F71: 0.8717948718 | G71: 0.03846153846 | H71: 136 | I71: 68 | J71: 17 | K71: 7 | L71: 2 | M71: 4
A72: QKK | B72: RV5 | C72: SOUTH LONDON AND MAUDSLEY NHS FOUNDATION TRUST | D72: Secure & Forensic Services | E72: 17 | F72: 0.8823529412 | G72: 0.05882352941 | H72: 9 | I72: 6 | J72: 1 | K72: 1 | L72: 0 | M72: 0
A73: QKK | B73: RV5 | C73: SOUTH LONDON AND MAUDSLEY NHS FOUNDATION TRUST | D73: Specialist Services | E73: 24 | F73: 0.875 | G73: 0 | H73: 18 | I73: 3 | J73: 3 | K73: 0 | L73: 0 | M73: 0
A74: QKS | B74: RXY | C74: KENT AND MEDWAY NHS AND SOCIAL CARE PARTNERSHIP TRUST | D74: Acute Services | E74: 112 | F74: 0.9017857143 | G74: 0.01785714286 | H74: 64 | I74: 37 | J74: 4 | K74: 2 | L74: 0 | M74: 5
A75: QKS | B75: RXY | C75: KENT AND MEDWAY NHS AND SOCIAL CARE PARTNERSHIP TRUST | D75: Mental Health Other | E75: 1 | F75: * | G75: * | H75: * | I75: * | J75: * | K75: * | L75: * | M75: *
A76: QKS | B76: RXY | C76: KENT AND MEDWAY NHS AND SOCIAL CARE PARTNERSHIP TRUST | D76: Secondary Care Community Services | E76: 450 | F76: 0.8644444444 | G76: 0.03555555556 | H76: 249 | I76: 140 | J76: 25 | K76: 8 | L76: 8 | M76: 20
A77: QKS | B77: RXY | C77: KENT AND MEDWAY NHS AND SOCIAL CARE PARTNERSHIP TRUST | D77: Secure & Forensic Services | E77: 13 | F77: 0.6923076923 | G77: 0 | H77: * | I77: * | J77: * | K77: * | L77: * | M77: *
A78: QKS | B78: RXY | C78: KENT AND MEDWAY NHS AND SOCIAL CARE PARTNERSHIP TRUST | D78: Specialist Services | E78: 65 | F78: 0.9692307692 | G78: 0.01538461538 | H78: 51 | I78: 12 | J78: 0 | K78: 0 | L78: 1 | M78: 1
A79: QM7 | B79: RY4 | C79: HERTFORDSHIRE COMMUNITY NHS TRUST | D79: Child & Adolescent Mental Health Services | E79: 39 | F79: 0.9487179487 | G79: 0.02564102564 | H79: 31 | I79: 6 | J79: 1 | K79: 1 | L79: 0 | M79: 0
A80: QM7 | B80: RWR | C80: HERTFORDSHIRE PARTNERSHIP UNIVERSITY NHS FOUNDATION TRUST | D80: Acute Services | E80: 95 | F80: 0.8421052632 | G80: 0.07368421053 | H80: 41 | I80: 39 | J80: 7 | K80: 3 | L80: 4 | M80: 1
A81: QM7 | B81: RWR | C81: HERTFORDSHIRE PARTNERSHIP UNIVERSITY NHS FOUNDATION TRUST | D81: Child & Adolescent Mental Health Services | E81: 19 | F81: 0.7368421053 | G81: 0.2631578947 | H81: 10 | I81: 4 | J81: 0 | K81: 1 | L81: 4 | M81: 0
A82: QM7 | B82: RWR | C82: HERTFORDSHIRE PARTNERSHIP UNIVERSITY NHS FOUNDATION TRUST | D82: Mental Health Other | E82: 3 | F82: * | G82: * | H82: * | I82: * | J82: * | K82: * | L82: * | M82: *
A83: QM7 | B83: RWR | C83: HERTFORDSHIRE PARTNERSHIP UNIVERSITY NHS FOUNDATION TRUST | D83: Primary Care | E83: 61 | F83: 0.9180327869 | G83: 0.04918032787 | H83: 42 | I83: 14 | J83: 1 | K83: 2 | L83: 1 | M83: 1
A84: QM7 | B84: RWR | C84: HERTFORDSHIRE PARTNERSHIP UNIVERSITY NHS FOUNDATION TRUST | D84: Secondary Care Community Services | E84: 42 | F84: 0.9761904762 | G84: 0.02380952381 | H84: 30 | I84: 11 | J84: 0 | K84: 0 | L84: 1 | M84: 0
A85: QM7 | B85: RWR | C85: HERTFORDSHIRE PARTNERSHIP UNIVERSITY NHS FOUNDATION TRUST | D85: Secure & Forensic Services | E85: 1 | F85: * | G85: * | H85: * | I85: * | J85: * | K85: * | L85: * | M85: *
A86: QM7 | B86: RWR | C86: HERTFORDSHIRE PARTNERSHIP UNIVERSITY NHS FOUNDATION TRUST | D86: Specialist Services | E86: 27 | F86: 1 | G86: 0 | H86: 24 | I86: 3 | J86: 0 | K86: 0 | L86: 0 | M86: 0
A87: QMF | B87: RWK | C87: EAST LONDON NHS FOUNDATION TRUST | D87: Acute Services | E87: 142 | F87: 0.8028169014 | G87: 0.04929577465 | H87: 59 | I87: 55 | J87: 17 | K87: 1 | L87: 6 | M87: 4
A88: QMF | B88: RWK | C88: EAST LONDON NHS FOUNDATION TRUST | D88: Child & Adolescent Mental Health Services | E88: 34 | F88: 0.8529411765 | G88: 0.02941176471 | H88: 0 | I88: 29 | J88: 3 | K88: 0 | L88: 1 | M88: 1
A89: QMF | B89: RWK | C89: EAST LONDON NHS FOUNDATION TRUST | D89: Mental Health Other | E89: 31 | F89: 0.6129032258 | G89: 0.2903225806 | H89: 13 | I89: 6 | J89: 1 | K89: 0 | L89: 9 | M89: 2
A90: QMF | B90: RWK | C90: EAST LONDON NHS FOUNDATION TRUST | D90: Primary Care | E90: 11 | F90: 1 | G90: 0 | H90: 10 | I90: 1 | J90: 0 | K90: 0 | L90: 0 | M90: 0
A91: QMF | B91: RWK | C91: EAST LONDON NHS FOUNDATION TRUST | D91: Secondary Care Community Services | E91: 86 | F91: 0.8604651163 | G91: 0.09302325581 | H91: 56 | I91: 18 | J91: 4 | K91: 3 | L91: 5 | M91: 0
A92: QMF | B92: RWK | C92: EAST LONDON NHS FOUNDATION TRUST | D92: Secure & Forensic Services | E92: 3 | F92: * | G92: * | H92: * | I92: * | J92: * | K92: * | L92: * | M92: *
A93: QMF | B93: RWK | C93: EAST LONDON NHS FOUNDATION TRUST | D93: Specialist Services | E93: 9 | F93: 0.7777777778 | G93: 0 | H93: * | I93: * | J93: * | K93: * | L93: * | M93: *
A94: QMF | B94: RAT | C94: NORTH EAST LONDON NHS FOUNDATION TRUST | D94: Acute Services | E94: 19 | F94: 0.6842105263 | G94: 0.1578947368 | H94: 10 | I94: 3 | J94: 3 | K94: 2 | L94: 1 | M94: 0
A95: QMF | B95: RAT | C95: NORTH EAST LONDON NHS FOUNDATION TRUST | D95: Child & Adolescent Mental Health Services | E95: 178 | F95: 0.7921348315 | G95: 0.06741573034 | H95: 97 | I95: 44 | J95: 18 | K95: 9 | L95: 3 | M95: 7
A96: QMF | B96: RAT | C96: NORTH EAST LONDON NHS FOUNDATION TRUST | D96: Primary Care | E96: 151 | F96: 0.8543046358 | G96: 0.05298013245 | H96: 90 | I96: 39 | J96: 12 | K96: 5 | L96: 3 | M96: 2
A97: QMF | B97: RAT | C97: NORTH EAST LONDON NHS FOUNDATION TRUST | D97: Secondary Care Community Services | E97: 60 | F97: 0.6666666667 | G97: 0.2333333333 | H97: 30 | I97: 10 | J97: 5 | K97: 4 | L97: 10 | M97: 1
A98: QMF | B98: RAT | C98: NORTH EAST LONDON NHS FOUNDATION TRUST | D98: Specialist Services | E98: 29 | F98: 0.724137931 | G98: 0.06896551724 | H98: 14 | I98: 7 | J98: 5 | K98: 1 | L98: 1 | M98: 1
A99: QMJ | B99: RRP | C99: BARNET, ENFIELD AND HARINGEY MENTAL HEALTH NHS TRUST | D99: Acute Services | E99: 139 | F99: 0.8848920863 | G99: 0.02158273381 | H99: 49 | I99: 74 | J99: 13 | K99: 0 | L99: 3 | M99: 0
A100: QMJ | B100: RRP | C100: BARNET, ENFIELD AND HARINGEY MENTAL HEALTH NHS TRUST | D100: Child & Adolescent Mental Health Services | E100: 32 | F100: 0.875 | G100: 0.09375 | H100: 16 | I100: 12 | J100: 1 | K100: 0 | L100: 3 | M100: 0
A101: QMJ | B101: RRP | C101: BARNET, ENFIELD AND HARINGEY MENTAL HEALTH NHS TRUST | D101: Primary Care | E101: 38 | F101: 1 | G101: 0 | H101: 32 | I101: 6 | J101: 0 | K101: 0 | L101: 0 | M101: 0
A102: QMJ | B102: RRP | C102: BARNET, ENFIELD AND HARINGEY MENTAL HEALTH NHS TRUST | D102: Secondary Care Community Services | E102: 310 | F102: 0.9548387097 | G102: 0.009677419355 | H102: 190 | I102: 106 | J102: 11 | K102: 0 | L102: 3 | M102: 0
A103: QMJ | B103: RRP | C103: BARNET, ENFIELD AND HARINGEY MENTAL HEALTH NHS TRUST | D103: Secure & Forensic Services | E103: 82 | F103: 0.9756097561 | G103: 0 | H103: 42 | I103: 38 | J103: 2 | K103: 0 | L103: 0 | M103: 0
A104: QMJ | B104: RRP | C104: BARNET, ENFIELD AND HARINGEY MENTAL HEALTH NHS TRUST | D104: Specialist Services | E104: 18 | F104: 1 | G104: 0 | H104: 13 | I104: 5 | J104: 0 | K104: 0 | L104: 0 | M104: 0
A105: QMJ | B105: TAF | C105: CAMDEN AND ISLINGTON NHS FOUNDATION TRUST | D105: Acute Services | E105: 27 | F105: 0.5555555556 | G105: 0.3333333333 | H105: * | I105: * | J105: * | K105: * | L105: * | M105: *
A106: QMJ | B106: TAF | C106: CAMDEN AND ISLINGTON NHS FOUNDATION TRUST | D106: Primary Care | E106: 47 | F106: 1 | G106: 0 | H106: 39 | I106: 8 | J106: 0 | K106: 0 | L106: 0 | M106: 0
A107: QMJ | B107: TAF | C107: CAMDEN AND ISLINGTON NHS FOUNDATION TRUST | D107: Secondary Care Community Services | E107: 131 | F107: 0.9236641221 | G107: 0.02290076336 | H107: 87 | I107: 34 | J107: 4 | K107: 1 | L107: 2 | M107: 3
A108: QMJ | B108: TAF | C108: CAMDEN AND ISLINGTON NHS FOUNDATION TRUST | D108: Specialist Services | E108: 2 | F108: * | G108: * | H108: * | I108: * | J108: * | K108: * | L108: * | M108: *
A109: QMJ | B109: RV3 | C109: CENTRAL AND NORTH WEST LONDON NHS FOUNDATION TRUST | D109: Acute Services | E109: 101 | F109: 0.6732673267 | G109: 0.1089108911 | H109: 40 | I109: 28 | J109: 20 | K109: 4 | L109: 7 | M109: 2
A110: QMJ | B110: RV3 | C110: CENTRAL AND NORTH WEST LONDON NHS FOUNDATION TRUST | D110: Child & Adolescent Mental Health Services | E110: 20 | F110: 0.9 | G110: 0.05 | H110: 13 | I110: 5 | J110: 1 | K110: 0 | L110: 1 | M110: 0
A111: QMJ | B111: RV3 | C111: CENTRAL AND NORTH WEST LONDON NHS FOUNDATION TRUST | D111: Mental Health Other | E111: 2 | F111: * | G111: * | H111: * | I111: * | J111: * | K111: * | L111: * | M111: *
A112: QMJ | B112: RV3 | C112: CENTRAL AND NORTH WEST LONDON NHS FOUNDATION TRUST | D112: Primary Care | E112: 1 | F112: * | G112: * | H112: * | I112: * | J112: * | K112: * | L112: * | M112: *
A113: QMJ | B113: RV3 | C113: CENTRAL AND NORTH WEST LONDON NHS FOUNDATION TRUST | D113: Secondary Care Community Services | E113: 89 | F113: 0.797752809 | G113: 0.1123595506 | H113: 48 | I113: 23 | J113: 7 | K113: 6 | L113: 4 | M113: 1
A114: QMJ | B114: RV3 | C114: CENTRAL AND NORTH WEST LONDON NHS FOUNDATION TRUST | D114: Specialist Services | E114: 22 | F114: 0.9090909091 | G114: 0.04545454545 | H114: 15 | I114: 5 | J114: 1 | K114: 0 | L114: 1 | M114: 0
A115: QMJ | B115: RNK | C115: TAVISTOCK AND PORTMAN NHS FOUNDATION TRUST | D115: Mental Health Other | E115: 55 | F115: 0.8363636364 | G115: 0.03636363636 | H115: * | I115: * | J115: * | K115: * | L115: * | M115: *
A116: QMJ | B116: RRV | C116: UNIVERSITY COLLEGE LONDON HOSPITALS NHS FOUNDATION TRUST | D116: Mental Health Other | E116: 4 | F116: * | G116: * | H116: * | I116: * | J116: * | K116: * | L116: * | M116: *
A117: QMM | B117: RMY | C117: NORFOLK AND SUFFOLK NHS FOUNDATION TRUST | D117: Acute Services | E117: 26 | F117: 0.6538461538 | G117: 0.07692307692 | H117: 11 | I117: 6 | J117: 7 | K117: 2 | L117: 0 | M117: 0
A118: QMM | B118: RMY | C118: NORFOLK AND SUFFOLK NHS FOUNDATION TRUST | D118: Child & Adolescent Mental Health Services | E118: 2 | F118: * | G118: * | H118: * | I118: * | J118: * | K118: * | L118: * | M118: *
A119: QMM | B119: RMY | C119: NORFOLK AND SUFFOLK NHS FOUNDATION TRUST | D119: Secondary Care Community Services | E119: 220 | F119: 0.5636363636 | G119: 0.3090909091 | H119: 91 | I119: 33 | J119: 21 | K119: 19 | L119: 49 | M119: 7
A120: QMM | B120: RMY | C120: NORFOLK AND SUFFOLK NHS FOUNDATION TRUST | D120: Secure & Forensic Services | E120: 3 | F120: * | G120: * | H120: * | I120: * | J120: * | K120: * | L120: * | M120: *
A121: QMM | B121: RMY | C121: NORFOLK AND SUFFOLK NHS FOUNDATION TRUST | D121: Specialist Services | E121: 26 | F121: 0.7692307692 | G121: 0.1153846154 | H121: 14 | I121: 6 | J121: 3 | K121: 1 | L121: 2 | M121: 0
A122: QNC | B122: RRE | C122: MIDLANDS PARTNERSHIP NHS FOUNDATION TRUST | D122: Acute Services | E122: 59 | F122: 0.7288135593 | G122: 0.06779661017 | H122: 28 | I122: 15 | J122: 12 | K122: 1 | L122: 3 | M122: 0
A123: QNC | B123: RRE | C123: MIDLANDS PARTNERSHIP NHS FOUNDATION TRUST | D123: Child & Adolescent Mental Health Services | E123: 31 | F123: 0.8387096774 | G123: 0 | H123: 21 | I123: 5 | J123: 4 | K123: 0 | L123: 0 | M123: 1
A124: QNC | B124: RRE | C124: MIDLANDS PARTNERSHIP NHS FOUNDATION TRUST | D124: Mental Health Other | E124: 64 | F124: 0.9375 | G124: 0.015625 | H124: 45 | I124: 15 | J124: 3 | K124: 1 | L124: 0 | M124: 0
A125: QNC | B125: RRE | C125: MIDLANDS PARTNERSHIP NHS FOUNDATION TRUST | D125: Primary Care | E125: 23 | F125: 0.8260869565 | G125: 0.04347826087 | H125: 16 | I125: 3 | J125: 3 | K125: 0 | L125: 1 | M125: 0
A126: QNC | B126: RRE | C126: MIDLANDS PARTNERSHIP NHS FOUNDATION TRUST | D126: Secondary Care Community Services | E126: 86 | F126: 0.8604651163 | G126: 0.09302325581 | H126: 58 | I126: 16 | J126: 3 | K126: 1 | L126: 7 | M126: 1
A127: QNC | B127: RRE | C127: MIDLANDS PARTNERSHIP NHS FOUNDATION TRUST | D127: Secure & Forensic Services | E127: 17 | F127: 0.8235294118 | G127: 0.05882352941 | H127: 5 | I127: 9 | J127: 2 | K127: 0 | L127: 1 | M127: 0
A128: QNC | B128: RRE | C128: MIDLANDS PARTNERSHIP NHS FOUNDATION TRUST | D128: Specialist Services | E128: 17 | F128: 0.9411764706 | G128: 0.05882352941 | H128: 14 | I128: 2 | J128: 0 | K128: 0 | L128: 1 | M128: 0
A129: QNC | B129: RLY | C129: NORTH STAFFORDSHIRE COMBINED HEALTHCARE NHS TRUST | D129: Acute Services | E129: 23 | F129: 0.9130434783 | G129: 0 | H129: 21 | I129: 0 | J129: 0 | K129: 0 | L129: 0 | M129: 2
A130: QNC | B130: RLY | C130: NORTH STAFFORDSHIRE COMBINED HEALTHCARE NHS TRUST | D130: Child & Adolescent Mental Health Services | E130: 8 | F130: 0.625 | G130: 0.125 | H130: 4 | I130: 1 | J130: 1 | K130: 0 | L130: 1 | M130: 1
A131: QNC | B131: RLY | C131: NORTH STAFFORDSHIRE COMBINED HEALTHCARE NHS TRUST | D131: Mental Health Other | E131: 13 | F131: 0.7692307692 | G131: 0.07692307692 | H131: 9 | I131: 1 | J131: 2 | K131: 0 | L131: 1 | M131: 0
A132: QNC | B132: RLY | C132: NORTH STAFFORDSHIRE COMBINED HEALTHCARE NHS TRUST | D132: Primary Care | E132: 6 | F132: 0.6666666667 | G132: 0.3333333333 | H132: 3 | I132: 1 | J132: 0 | K132: 0 | L132: 2 | M132: 0
A133: QNC | B133: RLY | C133: NORTH STAFFORDSHIRE COMBINED HEALTHCARE NHS TRUST | D133: Secondary Care Community Services | E133: 65 | F133: 0.9538461538 | G133: 0 | H133: 56 | I133: 6 | J133: 0 | K133: 0 | L133: 0 | M133: 3
A134: QNC | B134: RLY | C134: NORTH STAFFORDSHIRE COMBINED HEALTHCARE NHS TRUST | D134: Specialist Services | E134: 7 | F134: 0.8571428571 | G134: 0 | H134: 5 | I134: 1 | J134: 1 | K134: 0 | L134: 0 | M134: 0
A135: QNQ | B135: RWX | C135: BERKSHIRE HEALTHCARE NHS FOUNDATION TRUST | D135: Acute Services | E135: 18 | F135: 0.8888888889 | G135: 0 | H135: 11 | I135: 5 | J135: 2 | K135: 0 | L135: 0 | M135: 0
A136: QNQ | B136: RWX | C136: BERKSHIRE HEALTHCARE NHS FOUNDATION TRUST | D136: Child & Adolescent Mental Health Services | E136: 43 | F136: 0.8139534884 | G136: 0.1395348837 | H136: 25 | I136: 10 | J136: 2 | K136: 2 | L136: 4 | M136: 0
A137: QNQ | B137: RWX | C137: BERKSHIRE HEALTHCARE NHS FOUNDATION TRUST | D137: Mental Health Other | E137: 7 | F137: 0.7142857143 | G137: 0.1428571429 | H137: 4 | I137: 1 | J137: 1 | K137: 1 | L137: 0 | M137: 0
A138: QNQ | B138: RWX | C138: BERKSHIRE HEALTHCARE NHS FOUNDATION TRUST | D138: Primary Care | E138: 375 | F138: 0.7786666667 | G138: 0.1333333333 | H138: 180 | I138: 112 | J138: 31 | K138: 18 | L138: 32 | M138: 2
A139: QNQ | B139: RWX | C139: BERKSHIRE HEALTHCARE NHS FOUNDATION TRUST | D139: Secondary Care Community Services | E139: 168 | F139: 0.8869047619 | G139: 0.07142857143 | H139: 130 | I139: 19 | J139: 5 | K139: 3 | L139: 9 | M139: 2
A140: QNQ | B140: RWX | C140: BERKSHIRE HEALTHCARE NHS FOUNDATION TRUST | D140: Specialist Services | E140: 174 | F140: 0.8563218391 | G140: 0.08620689655 | H140: 94 | I140: 55 | J140: 6 | K140: 4 | L140: 11 | M140: 4
A141: QNX | B141: RX2 | C141: SUSSEX PARTNERSHIP NHS FOUNDATION TRUST | D141: Acute Services | E141: 17 | F141: 0.5882352941 | G141: 0.1764705882 | H141: 5 | I141: 5 | J141: 3 | K141: 2 | L141: 1 | M141: 1
A142: QNX | B142: RX2 | C142: SUSSEX PARTNERSHIP NHS FOUNDATION TRUST | D142: Child & Adolescent Mental Health Services | E142: 9 | F142: 0.6666666667 | G142: 0.3333333333 | H142: 6 | I142: 0 | J142: 0 | K142: 1 | L142: 2 | M142: 0
A143: QNX | B143: RX2 | C143: SUSSEX PARTNERSHIP NHS FOUNDATION TRUST | D143: Mental Health Other | E143: 22 | F143: 0.7727272727 | G143: 0.1363636364 | H143: 16 | I143: 1 | J143: 0 | K143: 2 | L143: 1 | M143: 2
A144: QNX | B144: RX2 | C144: SUSSEX PARTNERSHIP NHS FOUNDATION TRUST | D144: Secondary Care Community Services | E144: 111 | F144: 0.7927927928 | G144: 0.0990990991 | H144: 50 | I144: 38 | J144: 11 | K144: 6 | L144: 5 | M144: 1
A145: QNX | B145: RX2 | C145: SUSSEX PARTNERSHIP NHS FOUNDATION TRUST | D145: Secure & Forensic Services | E145: 1 | F145: * | G145: * | H145: * | I145: * | J145: * | K145: * | L145: * | M145: *
A146: QNX | B146: RX2 | C146: SUSSEX PARTNERSHIP NHS FOUNDATION TRUST | D146: Specialist Services | E146: 2 | F146: * | G146: * | H146: * | I146: * | J146: * | K146: * | L146: * | M146: *
A147: QOP | B147: RXV | C147: GREATER MANCHESTER MENTAL HEALTH NHS FOUNDATION TRUST | D147: Acute Services | E147: 108 | F147: 0.75 | G147: 0.1296296296 | H147: 48 | I147: 33 | J147: 13 | K147: 8 | L147: 6 | M147: 0
A148: QOP | B148: RXV | C148: GREATER MANCHESTER MENTAL HEALTH NHS FOUNDATION TRUST | D148: Child & Adolescent Mental Health Services | E148: 19 | F148: 0.5789473684 | G148: 0.05263157895 | H148: 6 | I148: 5 | J148: 7 | K148: 1 | L148: 0 | M148: 0
A149: QOP | B149: RXV | C149: GREATER MANCHESTER MENTAL HEALTH NHS FOUNDATION TRUST | D149: Mental Health Other | E149: 30 | F149: 0.6666666667 | G149: 0.1666666667 | H149: 17 | I149: 3 | J149: 3 | K149: 2 | L149: 3 | M149: 2
A150: QOP | B150: RXV | C150: GREATER MANCHESTER MENTAL HEALTH NHS FOUNDATION TRUST | D150: Primary Care | E150: 211 | F150: 0.9763033175 | G150: 0.01895734597 | H150: 179 | I150: 27 | J150: 0 | K150: 2 | L150: 2 | M150: 1
A151: QOP | B151: RXV | C151: GREATER MANCHESTER MENTAL HEALTH NHS FOUNDATION TRUST | D151: Secondary Care Community Services | E151: 171 | F151: 0.7660818713 | G151: 0.1520467836 | H151: 102 | I151: 29 | J151: 11 | K151: 4 | L151: 22 | M151: 3
A152: QOP | B152: RXV | C152: GREATER MANCHESTER MENTAL HEALTH NHS FOUNDATION TRUST | D152: Secure & Forensic Services | E152: 7 | F152: 0.7142857143 | G152: 0.1428571429 | H152: 0 | I152: 5 | J152: 0 | K152: 1 | L152: 0 | M152: 1
A153: QOP | B153: RXV | C153: GREATER MANCHESTER MENTAL HEALTH NHS FOUNDATION TRUST | D153: Specialist Services | E153: 6 | F153: 1 | G153: 0 | H153: 6 | I153: 0 | J153: 0 | K153: 0 | L153: 0 | M153: 0
A154: QOP | B154: RT2 | C154: PENNINE CARE NHS FOUNDATION TRUST | D154: Acute Services | E154: 77 | F154: 0.8051948052 | G154: 0.1038961039 | H154: 35 | I154: 27 | J154: 5 | K154: 2 | L154: 6 | M154: 2
A155: QOP | B155: RT2 | C155: PENNINE CARE NHS FOUNDATION TRUST | D155: Child & Adolescent Mental Health Services | E155: 277 | F155: 0.9350180505 | G155: 0.02166064982 | H155: 185 | I155: 74 | J155: 10 | K155: 3 | L155: 3 | M155: 2
A156: QOP | B156: RT2 | C156: PENNINE CARE NHS FOUNDATION TRUST | D156: Mental Health Other | E156: 16 | F156: 0.875 | G156: 0 | H156: 13 | I156: 1 | J156: 1 | K156: 0 | L156: 0 | M156: 1
A157: QOP | B157: RT2 | C157: PENNINE CARE NHS FOUNDATION TRUST | D157: Primary Care | E157: 63 | F157: 0.8253968254 | G157: 0.09523809524 | H157: 33 | I157: 19 | J157: 5 | K157: 5 | L157: 1 | M157: 0
A158: QOP | B158: RT2 | C158: PENNINE CARE NHS FOUNDATION TRUST | D158: Secondary Care Community Services | E158: 84 | F158: 0.9404761905 | G158: 0.03571428571 | H158: 63 | I158: 16 | J158: 2 | K158: 2 | L158: 1 | M158: 0
A159: QOQ | B159: RV9 | C159: HUMBER TEACHING NHS FOUNDATION TRUST | D159: Acute Services | E159: 36 | F159: 0.8055555556 | G159: 0.08333333333 | H159: 18 | I159: 11 | J159: 3 | K159: 2 | L159: 1 | M159: 1
A160: QOQ | B160: RV9 | C160: HUMBER TEACHING NHS FOUNDATION TRUST | D160: Child & Adolescent Mental Health Services | E160: 8 | F160: 0.75 | G160: 0 | H160: 4 | I160: 2 | J160: 2 | K160: 0 | L160: 0 | M160: 0
A161: QOQ | B161: RV9 | C161: HUMBER TEACHING NHS FOUNDATION TRUST | D161: Mental Health Other | E161: 5 | F161: 1 | G161: 0 | H161: 4 | I161: 1 | J161: 0 | K161: 0 | L161: 0 | M161: 0
A162: QOQ | B162: RV9 | C162: HUMBER TEACHING NHS FOUNDATION TRUST | D162: Primary Care | E162: 8 | F162: 1 | G162: 0 | H162: 7 | I162: 1 | J162: 0 | K162: 0 | L162: 0 | M162: 0
A163: QOQ | B163: RV9 | C163: HUMBER TEACHING NHS FOUNDATION TRUST | D163: Secondary Care Community Services | E163: 53 | F163: 1 | G163: 0 | H163: 42 | I163: 11 | J163: 0 | K163: 0 | L163: 0 | M163: 0
A164: QOQ | B164: RV9 | C164: HUMBER TEACHING NHS FOUNDATION TRUST | D164: Secure & Forensic Services | E164: 3 | F164: * | G164: * | H164: * | I164: * | J164: * | K164: * | L164: * | M164: *
A165: QOQ | B165: RV9 | C165: HUMBER TEACHING NHS FOUNDATION TRUST | D165: Specialist Services | E165: 2 | F165: * | G165: * | H165: * | I165: * | J165: * | K165: * | L165: * | M165: *
A166: QOX | B166: RVN | C166: AVON AND WILTSHIRE MENTAL HEALTH PARTNERSHIP NHS TRUST | D166: Acute Services | E166: 68 | F166: 0.8088235294 | G166: 0.02941176471 | H166: 33 | I166: 22 | J166: 8 | K166: 2 | L166: 0 | M166: 3
A167: QOX | B167: RVN | C167: AVON AND WILTSHIRE MENTAL HEALTH PARTNERSHIP NHS TRUST | D167: Mental Health Other | E167: 17 | F167: 0.8235294118 | G167: 0.05882352941 | H167: * | I167: * | J167: * | K167: * | L167: * | M167: *
A168: QOX | B168: RVN | C168: AVON AND WILTSHIRE MENTAL HEALTH PARTNERSHIP NHS TRUST | D168: Secondary Care Community Services | E168: 270 | F168: 0.8962962963 | G168: 0.04074074074 | H168: 168 | I168: 74 | J168: 10 | K168: 7 | L168: 4 | M168: 7
A169: QOX | B169: RVN | C169: AVON AND WILTSHIRE MENTAL HEALTH PARTNERSHIP NHS TRUST | D169: Secure & Forensic Services | E169: 2 | F169: * | G169: * | H169: * | I169: * | J169: * | K169: * | L169: * | M169: *
A170: QOX | B170: RVN | C170: AVON AND WILTSHIRE MENTAL HEALTH PARTNERSHIP NHS TRUST | D170: Specialist Services | E170: 17 | F170: 0.8823529412 | G170: 0 | H170: 8 | I170: 7 | J170: 0 | K170: 0 | L170: 0 | M170: 2
A171: QPM | B171: RP1 | C171: NORTHAMPTONSHIRE HEALTHCARE NHS FOUNDATION TRUST | D171: Acute Services | E171: 18 | F171: 0.8888888889 | G171: 0.05555555556 | H171: 11 | I171: 5 | J171: 1 | K171: 0 | L171: 1 | M171: 0
A172: QPM | B172: RP1 | C172: NORTHAMPTONSHIRE HEALTHCARE NHS FOUNDATION TRUST | D172: Child & Adolescent Mental Health Services | E172: 23 | F172: 1 | G172: 0 | H172: 21 | I172: 2 | J172: 0 | K172: 0 | L172: 0 | M172: 0
A173: QPM | B173: RP1 | C173: NORTHAMPTONSHIRE HEALTHCARE NHS FOUNDATION TRUST | D173: Primary Care | E173: 5 | F173: 1 | G173: 0 | H173: 5 | I173: 0 | J173: 0 | K173: 0 | L173: 0 | M173: 0
A174: QPM | B174: RP1 | C174: NORTHAMPTONSHIRE HEALTHCARE NHS FOUNDATION TRUST | D174: Secondary Care Community Services | E174: 105 | F174: 0.9047619048 | G174: 0.0380952381 | H174: 80 | I174: 15 | J174: 2 | K174: 0 | L174: 4 | M174: 4
A175: QPM | B175: RP1 | C175: NORTHAMPTONSHIRE HEALTHCARE NHS FOUNDATION TRUST | D175: Secure & Forensic Services | E175: 333 | F175: 0.9189189189 | G175: 0.03303303303 | H175: 269 | I175: 37 | J175: 3 | K175: 1 | L175: 10 | M175: 13
A176: QPM | B176: RP1 | C176: NORTHAMPTONSHIRE HEALTHCARE NHS FOUNDATION TRUST | D176: Specialist Services | E176: 33 | F176: 0.9393939394 | G176: 0.06060606061 | H176: 28 | I176: 3 | J176: 0 | K176: 0 | L176: 2 | M176: 0
A177: QR1 | B177: RTQ | C177: GLOUCESTERSHIRE HEALTH AND CARE NHS FOUNDATION TRUST | D177: Acute Services | E177: 30 | F177: 0.8 | G177: 0.06666666667 | H177: 18 | I177: 6 | J177: 3 | K177: 1 | L177: 1 | M177: 1
A178: QR1 | B178: RTQ | C178: GLOUCESTERSHIRE HEALTH AND CARE NHS FOUNDATION TRUST | D178: Child & Adolescent Mental Health Services | E178: 52 | F178: 0.9615384615 | G178: 0.01923076923 | H178: 35 | I178: 15 | J178: 1 | K178: 0 | L178: 1 | M178: 0
A179: QR1 | B179: RTQ | C179: GLOUCESTERSHIRE HEALTH AND CARE NHS FOUNDATION TRUST | D179: Mental Health Other | E179: 19 | F179: 0.8421052632 | G179: 0 | H179: 8 | I179: 8 | J179: 2 | K179: 0 | L179: 0 | M179: 1
A180: QR1 | B180: RTQ | C180: GLOUCESTERSHIRE HEALTH AND CARE NHS FOUNDATION TRUST | D180: Primary Care | E180: 3 | F180: * | G180: * | H180: * | I180: * | J180: * | K180: * | L180: * | M180: *
A181: QR1 | B181: RTQ | C181: GLOUCESTERSHIRE HEALTH AND CARE NHS FOUNDATION TRUST | D181: Secondary Care Community Services | E181: 5 | F181: 0.6 | G181: 0 | H181: * | I181: * | J181: * | K181: * | L181: * | M181: *
A182: QR1 | B182: RTQ | C182: GLOUCESTERSHIRE HEALTH AND CARE NHS FOUNDATION TRUST | D182: Specialist Services | E182: 45 | F182: 1 | G182: 0 | H182: 37 | I182: 8 | J182: 0 | K182: 0 | L182: 0 | M182: 0
A183: QRL | B183: R1F | C183: ISLE OF WIGHT NHS TRUST | D183: Primary Care | E183: 32 | F183: 1 | G183: 0 | H183: 26 | I183: 6 | J183: 0 | K183: 0 | L183: 0 | M183: 0
A184: QRL | B184: R1C | C184: SOLENT NHS TRUST | D184: Child & Adolescent Mental Health Services | E184: 126 | F184: 0.9841269841 | G184: 0 | H184: 91 | I184: 33 | J184: 2 | K184: 0 | L184: 0 | M184: 0
A185: QRL | B185: R1C | C185: SOLENT NHS TRUST | D185: Mental Health Other | E185: 8 | F185: 0.5 | G185: 0 | H185: 3 | I185: 1 | J185: 0 | K185: 0 | L185: 0 | M185: 4
A186: QRL | B186: R1C | C186: SOLENT NHS TRUST | D186: Secondary Care Community Services | E186: 39 | F186: 0.9743589744 | G186: 0 | H186: 3 | I186: 35 | J186: 1 | K186: 0 | L186: 0 | M186: 0
A187: QRL | B187: RW1 | C187: SOUTHERN HEALTH NHS FOUNDATION TRUST | D187: Acute Services | E187: 96 | F187: 0.9895833333 | G187: 0 | H187: 94 | I187: 1 | J187: 0 | K187: 0 | L187: 0 | M187: 1
A188: QRL | B188: RW1 | C188: SOUTHERN HEALTH NHS FOUNDATION TRUST | D188: Child & Adolescent Mental Health Services | E188: 5 | F188: 1 | G188: 0 | H188: 4 | I188: 1 | J188: 0 | K188: 0 | L188: 0 | M188: 0
A189: QRL | B189: RW1 | C189: SOUTHERN HEALTH NHS FOUNDATION TRUST | D189: Mental Health Other | E189: 135 | F189: 1 | G189: 0 | H189: 135 | I189: 0 | J189: 0 | K189: 0 | L189: 0 | M189: 0
A190: QRL | B190: RW1 | C190: SOUTHERN HEALTH NHS FOUNDATION TRUST | D190: Secondary Care Community Services | E190: 15 | F190: 1 | G190: 0 | H190: 15 | I190: 0 | J190: 0 | K190: 0 | L190: 0 | M190: 0
A191: QRL | B191: RW1 | C191: SOUTHERN HEALTH NHS FOUNDATION TRUST | D191: Secure & Forensic Services | E191: 6 | F191: 1 | G191: 0 | H191: 6 | I191: 0 | J191: 0 | K191: 0 | L191: 0 | M191: 0
A192: QRL | B192: RW1 | C192: SOUTHERN HEALTH NHS FOUNDATION TRUST | D192: Specialist Services | E192: 22 | F192: 1 | G192: 0 | H192: 22 | I192: 0 | J192: 0 | K192: 0 | L192: 0 | M192: 0
A193: QRV | B193: RKL | C193: WEST LONDON NHS TRUST | D193: Acute Services | E193: 85 | F193: 0.9647058824 | G193: 0.01176470588 | H193: 72 | I193: 10 | J193: 2 | K193: 1 | L193: 0 | M193: 0
A194: QRV | B194: RKL | C194: WEST LONDON NHS TRUST | D194: Child & Adolescent Mental Health Services | E194: 6 | F194: 0.6666666667 | G194: 0.3333333333 | H194: * | I194: * | J194: * | K194: * | L194: * | M194: *
A195: QRV | B195: RKL | C195: WEST LONDON NHS TRUST | D195: Primary Care | E195: 50 | F195: 0.88 | G195: 0.04 | H195: 35 | I195: 9 | J195: 4 | K195: 2 | L195: 0 | M195: 0
A196: QRV | B196: RKL | C196: WEST LONDON NHS TRUST | D196: Secondary Care Community Services | E196: 16 | F196: 0.9375 | G196: 0.0625 | H196: 12 | I196: 3 | J196: 0 | K196: 1 | L196: 0 | M196: 0
A197: QRV | B197: RKL | C197: WEST LONDON NHS TRUST | D197: Specialist Services | E197: 3 | F197: * | G197: * | H197: * | I197: * | J197: * | K197: * | L197: * | M197: *
A198: QSL | B198: RH5 | C198: SOMERSET NHS FOUNDATION TRUST | D198: Acute Services | E198: 5 | F198: 0.8 | G198: 0 | H198: * | I198: * | J198: * | K198: * | L198: * | M198: *
A199: QSL | B199: RH5 | C199: SOMERSET NHS FOUNDATION TRUST | D199: Primary Care | E199: 53 | F199: 0.9811320755 | G199: 0 | H199: 35 | I199: 17 | J199: 1 | K199: 0 | L199: 0 | M199: 0
A200: QSL | B200: RH5 | C200: SOMERSET NHS FOUNDATION TRUST | D200: Secondary Care Community Services | E200: 1 | F200: * | G200: * | H200: * | I200: * | J200: * | K200: * | L200: * | M200: *
A201: QT1 | B201: RHA | C201: NOTTINGHAMSHIRE HEALTHCARE NHS FOUNDATION TRUST | D201: Acute Services | E201: 31 | F201: 0.7741935484 | G201: 0.1935483871 | H201: 18 | I201: 6 | J201: 0 | K201: 2 | L201: 4 | M201: 1
A202: QT1 | B202: RHA | C202: NOTTINGHAMSHIRE HEALTHCARE NHS FOUNDATION TRUST | D202: Child & Adolescent Mental Health Services | E202: 2 | F202: * | G202: * | H202: * | I202: * | J202: * | K202: * | L202: * | M202: *
... 80 more rows

Sheet BS (hidden)
B1: Sort | C1: Region (LO) Code | D1: Region (LO) name | E1: Trust code | F1: Trust name | G1: Category | I1: Sort Lists: | J1: Sort range… | K1: Sort range… | L1: Sort range… | M1: Reference Region Lists: | N1: Code… | O1: Name… | P1: Linked Region Lists: | Q1: Code… | R1: Name… | S1: Reference Lists: | T1: Code… | U1: Code… | V1: Name… | W1: Category… | X1: Trusts Linked Lists: | Y1: Code… | Z1: Name… | AA1: Categories Linked Lists: | AB1: Code… | AC1: Name… | AD1: Category…
A2: Region (LO) | B2: 1 | C2: 1 | D2: 1 | E2: - | F2: - | G2: - | J2: STP Code | K2: STP Code | L2: STP Code | N2: QE1 | O2: HEALTHIER LANCASHIRE AND SOUTH CUMBRIA | Q2: QE1 | R2: HEALTHIER LANCASHIRE AND SOUTH CUMBRIA | T2: QE1 | U2: RXL | V2: BLACKPOOL TEACHING HOSPITALS NHS FOUNDATION TRUST | W2: Secondary Care Community Services | Y2: NDK | Z2: ALDER HEY CHILDREN'S NHS FOUNDATION TRUST | AB2: NDK | AC2: ALDER HEY CHILDREN'S NHS FOUNDATION TRUST | AD2: Acute Services
A3: Trusts | B3: 1 | C3: 1 | D3: 1 | E3: 1 | F3: 1 | G3: - | J3: STP Name | K3: Trust Code | L3: Trust Code | N3: QF7 | O3: SOUTH YORKSHIRE AND BASSETLAW STP | Q3: QF7 | R3: SOUTH YORKSHIRE AND BASSETLAW STP | T3: QE1 | U3: RW5 | V3: LANCASHIRE & SOUTH CUMBRIA NHS FOUNDATION TRUST | W3: Acute Services | Y3: NNF | Z3: AVON AND WILTSHIRE MENTAL HEALTH PARTNERSHIP NHS TRUST | AB3: NNF | AC3: AVON AND WILTSHIRE MENTAL HEALTH PARTNERSHIP NHS TRUST | AD3: Child & Adolescent Mental Health Services
A4: Categories | B4: 1 | C4: 1 | D4: 1 | E4: 1 | F4: 1 | G4: 1 | J4: Total Responses | K4: Trust Name | L4: Trust Name | N4: QGH | O4: HEREFORDSHIRE AND WORCESTERSHIRE STP | Q4: QGH | R4: HEREFORDSHIRE AND WORCESTERSHIRE STP | T4: QE1 | U4: RW5 | V4: LANCASHIRE & SOUTH CUMBRIA NHS FOUNDATION TRUST | W4: Child & Adolescent Mental Health Services | Y4: NQL | Z4: BARNET, ENFIELD AND HARINGEY MENTAL HEALTH NHS TRUST | AB4: NQL | AC4: BARNET, ENFIELD AND HARINGEY MENTAL HEALTH NHS TRUST | AD4: Mental Health Other
J5: Total Eligible | K5: Total Responses | L5: Category | N5: QH8 | O5: MID AND SOUTH ESSEX STP | Q5: QH8 | R5: MID AND SOUTH ESSEX STP | T5: QE1 | U5: RW5 | V5: LANCASHIRE & SOUTH CUMBRIA NHS FOUNDATION TRUST | W5: Mental Health Other | Y5: NR5 | Z5: BERKSHIRE HEALTHCARE NHS FOUNDATION TRUST | AB5: NR5 | AC5: BERKSHIRE HEALTHCARE NHS FOUNDATION TRUST | AD5: Primary Care
J6: Percentage Positive | K6: Total Eligible | L6: Total Responses | N6: QHL | O6: BIRMINGHAM AND SOLIHULL STP | Q6: QHL | R6: BIRMINGHAM AND SOLIHULL STP | T6: QE1 | U6: RW5 | V6: LANCASHIRE & SOUTH CUMBRIA NHS FOUNDATION TRUST | W6: Secondary Care Community Services | Y6: NV2 | Z6: BIRMINGHAM AND SOLIHULL MENTAL HEALTH NHS FOUNDATION TRUST | AB6: NV2 | AC6: BIRMINGHAM AND SOLIHULL MENTAL HEALTH NHS FOUNDATION TRUST | AD6: Secondary Care Community Services
J7: Percentage Negative | K7: Percentage Positive | L7: Percentage Positive | N7: QHM | O7: CUMBRIA AND NORTH EAST STP | Q7: QHM | R7: CUMBRIA AND NORTH EAST STP | T7: QE1 | U7: RW5 | V7: LANCASHIRE & SOUTH CUMBRIA NHS FOUNDATION TRUST | W7: Secure & Forensic Services | Y7: O2F3D | Z7: BLACK COUNTRY HEALTHCARE NHS FOUNDATION TRUST | AB7: O2F3D | AC7: BLACK COUNTRY HEALTHCARE NHS FOUNDATION TRUST | AD7: Secure & Forensic Services
J8: Very Good | K8: Percentage Negative | L8: Percentage Negative | N8: QJ2 | O8: JOINED UP CARE DERBYSHIRE STP | Q8: QJ2 | R8: JOINED UP CARE DERBYSHIRE STP | T8: QE1 | U8: RW5 | V8: LANCASHIRE & SOUTH CUMBRIA NHS FOUNDATION TRUST | W8: Specialist Services | Y8: R0B | Z8: BLACKPOOL TEACHING HOSPITALS NHS FOUNDATION TRUST | AB8: R0B | AC8: BLACKPOOL TEACHING HOSPITALS NHS FOUNDATION TRUST | AD8: Specialist Services
J9: Good | K9: Very Good | L9: Very Good | N9: QJM | O9: LINCOLNSHIRE STP | Q9: QJM | R9: LINCOLNSHIRE STP | T9: QF7 | U9: RXE | V9: ROTHERHAM DONCASTER AND SOUTH HUMBER NHS FOUNDATION TRUST | W9: Acute Services | Y9: R1A | Z9: BRADFORD DISTRICT CARE NHS FOUNDATION TRUST | AB9: R1A | AC9: BRADFORD DISTRICT CARE NHS FOUNDATION TRUST
J10: Neither Good nor Poor | K10: Good | L10: Good | N10: QK1 | O10: LEICESTER, LEICESTERSHIRE AND RUTLAND STP | Q10: QK1 | R10: LEICESTER, LEICESTERSHIRE AND RUTLAND STP | T10: QF7 | U10: RXE | V10: ROTHERHAM DONCASTER AND SOUTH HUMBER NHS FOUNDATION TRUST | W10: Child & Adolescent Mental Health Services | Y10: R1C | Z10: CAMBRIDGESHIRE AND PETERBOROUGH NHS FOUNDATION TRUST | AB10: R1C | AC10: CAMBRIDGESHIRE AND PETERBOROUGH NHS FOUNDATION TRUST
J11: Poor | K11: Neither Good nor Poor | L11: Neither Good nor Poor | N11: QKK | O11: OUR HEALTHIER SOUTH EAST LONDON STP | Q11: QKK | R11: OUR HEALTHIER SOUTH EAST LONDON STP | T11: QF7 | U11: RXE | V11: ROTHERHAM DONCASTER AND SOUTH HUMBER NHS FOUNDATION TRUST | W11: Primary Care | Y11: R1F | Z11: CAMDEN AND ISLINGTON NHS FOUNDATION TRUST | AB11: R1F | AC11: CAMDEN AND ISLINGTON NHS FOUNDATION TRUST
J12: Very Poor | K12: Poor | L12: Poor | N12: QKS | O12: KENT AND MEDWAY STP | Q12: QKS | R12: KENT AND MEDWAY STP | T12: QF7 | U12: RXE | V12: ROTHERHAM DONCASTER AND SOUTH HUMBER NHS FOUNDATION TRUST | W12: Secondary Care Community Services | Y12: R1L | Z12: CENTRAL AND NORTH WEST LONDON NHS FOUNDATION TRUST | AB12: R1L | AC12: CENTRAL AND NORTH WEST LONDON NHS FOUNDATION TRUST
J13: Don't Know | K13: Very Poor | L13: Very Poor | N13: QM7 | O13: HERTFORDSHIRE AND WEST ESSEX STP | Q13: QM7 | R13: HERTFORDSHIRE AND WEST ESSEX STP | T13: QF7 | U13: RXE | V13: ROTHERHAM DONCASTER AND SOUTH HUMBER NHS FOUNDATION TRUST | W13: Specialist Services | Y13: RAT | Z13: CHESHIRE AND WIRRAL PARTNERSHIP NHS FOUNDATION TRUST | AB13: RAT | AC13: CHESHIRE AND WIRRAL PARTNERSHIP NHS FOUNDATION TRUST
K14: Don't Know | L14: Don't Know | N14: QMF | O14: EAST LONDON HEALTH & CARE PARTNERSHIP (STP) | Q14: QMF | R14: EAST LONDON HEALTH & CARE PARTNERSHIP (STP) | T14: QF7 | U14: RCU | V14: SHEFFIELD CHILDREN'S NHS FOUNDATION TRUST | W14: Child & Adolescent Mental Health Services | Y14: RBS | Z14: CITY HEALTH CARE PARTNERSHIP CIC | AB14: RBS | AC14: CITY HEALTH CARE PARTNERSHIP CIC
K15: Mode SMS | N15: QMJ | O15: NORTH LONDON PARTNERS IN HEALTH & CARE (STP) | Q15: QMJ | R15: NORTH LONDON PARTNERS IN HEALTH & CARE (STP) | T15: QF7 | U15: TAH | V15: SHEFFIELD HEALTH & SOCIAL CARE NHS FOUNDATION TRUST | W15: Mental Health Other | Y15: RCU | Z15: CORNWALL PARTNERSHIP NHS FOUNDATION TRUST | AB15: RCU | AC15: CORNWALL PARTNERSHIP NHS FOUNDATION TRUST
K16: Mode Electronic Discharge | N16: QMM | O16: NORFOLK AND WAVENEY HEALTH & CARE PARTNERSHIP (STP) | Q16: QMM | R16: NORFOLK AND WAVENEY HEALTH & CARE PARTNERSHIP (STP) | T16: QF7 | U16: TAH | V16: SHEFFIELD HEALTH & SOCIAL CARE NHS FOUNDATION TRUST | W16: Secondary Care Community Services | Y16: RDY | Z16: CUMBRIA, NORTHUMBERLAND, TYNE AND WEAR NHS FOUNDATION TRUST | AB16: RDY | AC16: CUMBRIA, NORTHUMBERLAND, TYNE AND WEAR NHS FOUNDATION TRUST
K17: Mode Electronic Home | N17: QNC | O17: STAFFORDSHIRE & STOKE ON TRENT STP | Q17: QNC | R17: STAFFORDSHIRE & STOKE ON TRENT STP | T17: QF7 | U17: TAH | V17: SHEFFIELD HEALTH & SOCIAL CARE NHS FOUNDATION TRUST | W17: Specialist Services | Y17: RGD | Z17: DERBYSHIRE HEALTHCARE NHS FOUNDATION TRUST | AB17: RGD | AC17: DERBYSHIRE HEALTHCARE NHS FOUNDATION TRUST
K18: Mode Paper Discharge | N18: QNQ | O18: FRIMLEY HEALTH & CARE (STP) | Q18: QNQ | R18: FRIMLEY HEALTH & CARE (STP) | T18: QGH | U18: R1A | V18: HEREFORDSHIRE AND WORCESTERSHIRE HEALTH AND CARE NHS TRUST | W18: Child & Adolescent Mental Health Services | Y18: RH5 | Z18: DORSET HEALTHCARE UNIVERSITY NHS FOUNDATION TRUST | AB18: RH5 | AC18: DORSET HEALTHCARE UNIVERSITY NHS FOUNDATION TRUST
K19: Mode Paper Home | N19: QNX | O19: SUSSEX HEALTH AND CARE PARTNERSHIP | Q19: QNX | R19: SUSSEX HEALTH AND CARE PARTNERSHIP | T19: QGH | U19: R1A | V19: HEREFORDSHIRE AND WORCESTERSHIRE HEALTH AND CARE NHS TRUST | W19: Mental Health Other | Y19: RHA | Z19: DUDLEY INTEGRATED HEALTH AND CARE NHS TRUST | AB19: RHA | AC19: DUDLEY INTEGRATED HEALTH AND CARE NHS TRUST
K20: Mode Telephone | N20: QOP | O20: GREATER MANCHESTER HEALTH & SOCIAL CARE PARTNERSHIP | Q20: QOP | R20: GREATER MANCHESTER HEALTH & SOCIAL CARE PARTNERSHIP | T20: QGH | U20: R1A | V20: HEREFORDSHIRE AND WORCESTERSHIRE HEALTH AND CARE NHS TRUST | W20: Primary Care | Y20: RJ8 | Z20: EAST LONDON NHS FOUNDATION TRUST | AB20: RJ8 | AC20: EAST LONDON NHS FOUNDATION TRUST
K21: Mode Online | N21: QOQ | O21: HUMBER, COAST AND VALE STP | Q21: QOQ | R21: HUMBER, COAST AND VALE STP | T21: QGH | U21: R1A | V21: HEREFORDSHIRE AND WORCESTERSHIRE HEALTH AND CARE NHS TRUST | W21: Secondary Care Community Services | Y21: RKL | Z21: ESSEX PARTNERSHIP UNIVERSITY NHS FOUNDATION TRUST | AB21: RKL | AC21: ESSEX PARTNERSHIP UNIVERSITY NHS FOUNDATION TRUST
K22: Mode Other | N22: QOX | O22: BATH AND NORTH EAST SOMERSET, SWINDON AND WILTSHIRE STP | Q22: QOX | R22: BATH AND NORTH EAST SOMERSET, SWINDON AND WILTSHIRE STP | T22: QGH | U22: R1A | V22: HEREFORDSHIRE AND WORCESTERSHIRE HEALTH AND CARE NHS TRUST | W22: Specialist Services | Y22: RLY | Z22: FRESHNEY PELHAM CARE LIMITED | AB22: RLY | AC22: FRESHNEY PELHAM CARE LIMITED
N23: QPM | O23: NORTHAMPTONSHIRE STP | Q23: QPM | R23: NORTHAMPTONSHIRE STP | T23: QH8 | U23: R1L | V23: ESSEX PARTNERSHIP UNIVERSITY NHS FOUNDATION TRUST | W23: Primary Care | Y23: RMY | Z23: GLOUCESTERSHIRE HEALTH AND CARE NHS FOUNDATION TRUST | AB23: RMY | AC23: GLOUCESTERSHIRE HEALTH AND CARE NHS FOUNDATION TRUST
N24: QR1 | O24: GLOUCESTERSHIRE STP | Q24: QR1 | R24: GLOUCESTERSHIRE STP | T24: QH8 | U24: R1L | V24: ESSEX PARTNERSHIP UNIVERSITY NHS FOUNDATION TRUST | W24: Secondary Care Community Services | Y24: RNK | Z24: GREATER MANCHESTER MENTAL HEALTH NHS FOUNDATION TRUST | AB24: RNK | AC24: GREATER MANCHESTER MENTAL HEALTH NHS FOUNDATION TRUST
N25: QRL | O25: HAMPSHIRE AND THE ISLE OF WIGHT STP | Q25: QRL | R25: HAMPSHIRE AND THE ISLE OF WIGHT STP | T25: QHM | U25: RX4 | V25: CUMBRIA, NORTHUMBERLAND, TYNE AND WEAR NHS FOUNDATION TRUST | W25: Acute Services | Y25: RNU | Z25: HEREFORDSHIRE AND WORCESTERSHIRE HEALTH AND CARE NHS TRUST | AB25: RNU | AC25: HEREFORDSHIRE AND WORCESTERSHIRE HEALTH AND CARE NHS TRUST
N26: QRV | O26: NORTH WEST LONDON HEALTH & CARE PARTNERSHIP (STP) | Q26: QRV | R26: NORTH WEST LONDON HEALTH & CARE PARTNERSHIP (STP) | T26: QHM | U26: RX4 | V26: CUMBRIA, NORTHUMBERLAND, TYNE AND WEAR NHS FOUNDATION TRUST | W26: Child & Adolescent Mental Health Services | Y26: RP1 | Z26: HERTFORDSHIRE COMMUNITY NHS TRUST | AB26: RP1 | AC26: HERTFORDSHIRE COMMUNITY NHS TRUST
N27: QSL | O27: SOMERSET STP | Q27: QSL | R27: SOMERSET STP | T27: QHM | U27: RX4 | V27: CUMBRIA, NORTHUMBERLAND, TYNE AND WEAR NHS FOUNDATION TRUST | W27: Mental Health Other | Y27: RP7 | Z27: HERTFORDSHIRE PARTNERSHIP UNIVERSITY NHS FOUNDATION TRUST | AB27: RP7 | AC27: HERTFORDSHIRE PARTNERSHIP UNIVERSITY NHS FOUNDATION TRUST
N28: QT1 | O28: NOTTINGHAM AND NOTTINGHAMSHIRE HEALTH AND CARE STP | Q28: QT1 | R28: NOTTINGHAM AND NOTTINGHAMSHIRE HEALTH AND CARE STP | T28: QHM | U28: RX4 | V28: CUMBRIA, NORTHUMBERLAND, TYNE AND WEAR NHS FOUNDATION TRUST | W28: Secondary Care Community Services | Y28: RPG | Z28: HUMBER TEACHING NHS FOUNDATION TRUST | AB28: RPG | AC28: HUMBER TEACHING NHS FOUNDATION TRUST
N29: QT6 | O29: CORNWALL AND THE ISLES OF SCILLY HEALTH & SOCIAL CARE PARTNERSHIP (STP) | Q29: QT6 | R29: CORNWALL AND THE ISLES OF SCILLY HEALTH & SOCIAL CARE PARTNERSHIP (STP) | T29: QHM | U29: RX4 | V29: CUMBRIA, NORTHUMBERLAND, TYNE AND WEAR NHS FOUNDATION TRUST | W29: Secure & Forensic Services | Y29: RQY | Z29: ISLE OF WIGHT NHS TRUST | AB29: RQY | AC29: ISLE OF WIGHT NHS TRUST
N30: QU9 | O30: BUCKINGHAMSHIRE, OXFORDSHIRE AND BERKSHIRE WEST STP | Q30: QU9 | R30: BUCKINGHAMSHIRE, OXFORDSHIRE AND BERKSHIRE WEST STP | T30: QHM | U30: RX4 | V30: CUMBRIA, NORTHUMBERLAND, TYNE AND WEAR NHS FOUNDATION TRUST | W30: Specialist Services | Y30: RRE | Z30: KENT AND MEDWAY NHS AND SOCIAL CARE PARTNERSHIP TRUST | AB30: RRE | AC30: KENT AND MEDWAY NHS AND SOCIAL CARE PARTNERSHIP TRUST
N31: QUA | O31: THE BLACK COUNTRY AND WEST BIRMINGHAM STP | Q31: QUA | R31: THE BLACK COUNTRY AND WEST BIRMINGHAM STP | T31: QHM | U31: R0B | V31: SOUTH TYNESIDE AND SUNDERLAND NHS FOUNDATION TRUST | W31: Child & Adolescent Mental Health Services | Y31: RRP | Z31: LANCASHIRE & SOUTH CUMBRIA NHS FOUNDATION TRUST | AB31: RRP | AC31: LANCASHIRE & SOUTH CUMBRIA NHS FOUNDATION TRUST
N32: QUE | O32: CAMBRIDGESHIRE AND PETERBOROUGH STP | Q32: QUE | R32: CAMBRIDGESHIRE AND PETERBOROUGH STP | T32: QHM | U32: RX3 | V32: TEES, ESK AND WEAR VALLEYS NHS FOUNDATION TRUST | W32: Acute Services | Y32: RRV | Z32: LEEDS AND YORK PARTNERSHIP NHS FOUNDATION TRUST | AB32: RRV | AC32: LEEDS AND YORK PARTNERSHIP NHS FOUNDATION TRUST
N33: QVV | O33: DORSET STP | Q33: QVV | R33: DORSET STP | T33: QHM | U33: RX3 | V33: TEES, ESK AND WEAR VALLEYS NHS FOUNDATION TRUST | W33: Child & Adolescent Mental Health Services | Y33: RT1 | Z33: LEEDS COMMUNITY HEALTHCARE NHS TRUST | AB33: RT1 | AC33: LEEDS COMMUNITY HEALTHCARE NHS TRUST
N34: QWE | O34: SOUTH WEST LONDON HEALTH & CARE PARTNERSHIP (STP) | Q34: QWE | R34: SOUTH WEST LONDON HEALTH & CARE PARTNERSHIP (STP) | T34: QHM | U34: RX3 | V34: TEES, ESK AND WEAR VALLEYS NHS FOUNDATION TRUST | W34: Mental Health Other | Y34: RT2 | Z34: LEICESTERSHIRE PARTNERSHIP NHS TRUST | AB34: RT2 | AC34: LEICESTERSHIRE PARTNERSHIP NHS TRUST
N35: QWO | O35: WEST YORKSHIRE AND HARROGATE HEALTH & CARE PARTNERSHIP (STP) | Q35: QWO | R35: WEST YORKSHIRE AND HARROGATE HEALTH & CARE PARTNERSHIP (STP) | T35: QHM | U35: RX3 | V35: TEES, ESK AND WEAR VALLEYS NHS FOUNDATION TRUST | W35: Primary Care | Y35: RT5 | Z35: LINCOLNSHIRE PARTNERSHIP NHS FOUNDATION TRUST | AB35: RT5 | AC35: LINCOLNSHIRE PARTNERSHIP NHS FOUNDATION TRUST
N36: QWU | O36: COVENTRY AND WARWICKSHIRE STP | Q36: QWU | R36: COVENTRY AND WARWICKSHIRE STP | T36: QHM | U36: RX3 | V36: TEES, ESK AND WEAR VALLEYS NHS FOUNDATION TRUST | W36: Secondary Care Community Services | Y36: RTQ | Z36: LIVEWELL SOUTHWEST | AB36: RTQ | AC36: LIVEWELL SOUTHWEST
N37: QXU | O37: SURREY HEARTLANDS HEALTH & CARE PARTNERSHIP (STP) | Q37: QXU | R37: SURREY HEARTLANDS HEALTH & CARE PARTNERSHIP (STP) | T37: QHM | U37: RX3 | V37: TEES, ESK AND WEAR VALLEYS NHS FOUNDATION TRUST | W37: Secure & Forensic Services | Y37: RV3 | Z37: MERSEY CARE NHS FOUNDATION TRUST | AB37: RV3 | AC37: MERSEY CARE NHS FOUNDATION TRUST
N38: QYG | O38: CHESHIRE AND MERSEYSIDE STP | Q38: QYG | R38: CHESHIRE AND MERSEYSIDE STP | T38: QHM | U38: RX3 | V38: TEES, ESK AND WEAR VALLEYS NHS FOUNDATION TRUST | W38: Specialist Services | Y38: RV5 | Z38: MIDLANDS PARTNERSHIP NHS FOUNDATION TRUST | AB38: RV5 | AC38: MIDLANDS PARTNERSHIP NHS FOUNDATION TRUST
N39: IS1 | O39: Independent Sector Providers | Q39: IS1 | R39: Independent Sector Providers | T39: QJ2 | U39: RXM | V39: DERBYSHIRE HEALTHCARE NHS FOUNDATION TRUST | W39: Acute Services | Y39: RV9 | Z39: NAVIGO HEALTH AND SOCIAL CARE CIC | AB39: RV9 | AC39: NAVIGO HEALTH AND SOCIAL CARE CIC
T40: QJ2 | U40: RXM | V40: DERBYSHIRE HEALTHCARE NHS FOUNDATION TRUST | W40: Child & Adolescent Mental Health Services | Y40: RVN | Z40: NORFOLK AND SUFFOLK NHS FOUNDATION TRUST | AB40: RVN | AC40: NORFOLK AND SUFFOLK NHS FOUNDATION TRUST
T41: QJ2 | U41: RXM | V41: DERBYSHIRE HEALTHCARE NHS FOUNDATION TRUST | W41: Mental Health Other | Y41: RW1 | Z41: NORTH EAST LONDON NHS FOUNDATION TRUST | AB41: RW1 | AC41: NORTH EAST LONDON NHS FOUNDATION TRUST
T42: QJ2 | U42: RXM | V42: DERBYSHIRE HEALTHCARE NHS FOUNDATION TRUST | W42: Primary Care | Y42: RW4 | Z42: NORTH STAFFORDSHIRE COMBINED HEALTHCARE NHS TRUST | AB42: RW4 | AC42: NORTH STAFFORDSHIRE COMBINED HEALTHCARE NHS TRUST
T43: QJ2 | U43: RXM | V43: DERBYSHIRE HEALTHCARE NHS FOUNDATION TRUST | W43: Secondary Care Community Services | Y43: RW5 | Z43: NORTHAMPTONSHIRE HEALTHCARE NHS FOUNDATION TRUST | AB43: RW5 | AC43: NORTHAMPTONSHIRE HEALTHCARE NHS FOUNDATION TRUST
T44: QJ2 | U44: RXM | V44: DERBYSHIRE HEALTHCARE NHS FOUNDATION TRUST | W44: Specialist Services | Y44: RWK | Z44: NOTTINGHAMSHIRE HEALTHCARE NHS FOUNDATION TRUST | AB44: RWK | AC44: NOTTINGHAMSHIRE HEALTHCARE NHS FOUNDATION TRUST
T45: QJM | U45: RP7 | V45: LINCOLNSHIRE PARTNERSHIP NHS FOUNDATION TRUST | W45: Acute Services | Y45: RWR | Z45: OXFORD HEALTH NHS FOUNDATION TRUST | AB45: RWR | AC45: OXFORD HEALTH NHS FOUNDATION TRUST
T46: QJM | U46: RP7 | V46: LINCOLNSHIRE PARTNERSHIP NHS FOUNDATION TRUST | W46: Child & Adolescent Mental Health Services | Y46: RWX | Z46: OXLEAS NHS FOUNDATION TRUST | AB46: RWX | AC46: OXLEAS NHS FOUNDATION TRUST
T47: QJM | U47: RP7 | V47: LINCOLNSHIRE PARTNERSHIP NHS FOUNDATION TRUST | W47: Mental Health Other | Y47: RX2 | Z47: PENNINE CARE NHS FOUNDATION TRUST | AB47: RX2 | AC47: PENNINE CARE NHS FOUNDATION TRUST
T48: QJM | U48: RP7 | V48: LINCOLNSHIRE PARTNERSHIP NHS FOUNDATION TRUST | W48: Primary Care | Y48: RX3 | Z48: ROTHERHAM DONCASTER AND SOUTH HUMBER NHS FOUNDATION TRUST | AB48: RX3 | AC48: ROTHERHAM DONCASTER AND SOUTH HUMBER NHS FOUNDATION TRUST
T49: QJM | U49: RP7 | V49: LINCOLNSHIRE PARTNERSHIP NHS FOUNDATION TRUST | W49: Secondary Care Community Services | Y49: RX4 | Z49: SHEFFIELD CHILDREN'S NHS FOUNDATION TRUST | AB49: RX4 | AC49: SHEFFIELD CHILDREN'S NHS FOUNDATION TRUST
T50: QJM | U50: RP7 | V50: LINCOLNSHIRE PARTNERSHIP NHS FOUNDATION TRUST | W50: Secure & Forensic Services | Y50: RXA | Z50: SHEFFIELD HEALTH & SOCIAL CARE NHS FOUNDATION TRUST | AB50: RXA | AC50: SHEFFIELD HEALTH & SOCIAL CARE NHS FOUNDATION TRUST
T51: QJM | U51: RP7 | V51: LINCOLNSHIRE PARTNERSHIP NHS FOUNDATION TRUST | W51: Specialist Services | Y51: RXE | Z51: SOLENT NHS TRUST | AB51: RXE | AC51: SOLENT NHS TRUST
T52: QK1 | U52: RT5 | V52: LEICESTERSHIRE PARTNERSHIP NHS TRUST | W52: Acute Services | Y52: RXG | Z52: SOMERSET NHS FOUNDATION TRUST | AB52: RXG | AC52: SOMERSET NHS FOUNDATION TRUST
T53: QK1 | U53: RT5 | V53: LEICESTERSHIRE PARTNERSHIP NHS TRUST | W53: Child & Adolescent Mental Health Services | Y53: RXL | Z53: SOUTH LONDON AND MAUDSLEY NHS FOUNDATION TRUST | AB53: RXL | AC53: SOUTH LONDON AND MAUDSLEY NHS FOUNDATION TRUST
T54: QK1 | U54: RT5 | V54: LEICESTERSHIRE PARTNERSHIP NHS TRUST | W54: Secondary Care Community Services | Y54: RXM | Z54: SOUTH TYNESIDE AND SUNDERLAND NHS FOUNDATION TRUST | AB54: RXM | AC54: SOUTH TYNESIDE AND SUNDERLAND NHS FOUNDATION TRUST
T55: QK1 | U55: RT5 | V55: LEICESTERSHIRE PARTNERSHIP NHS TRUST | W55: Specialist Services | Y55: RXT | Z55: SOUTH WEST LONDON AND ST GEORGE'S MENTAL HEALTH NHS TRUST | AB55: RXT | AC55: SOUTH WEST LONDON AND ST GEORGE'S MENTAL HEALTH NHS TRUST
T56: QKK | U56: RPG | V56: OXLEAS NHS FOUNDATION TRUST | W56: Acute Services | Y56: RXV | Z56: SOUTH WEST YORKSHIRE PARTNERSHIP NHS FOUNDATION TRUST | AB56: RXV | AC56: SOUTH WEST YORKSHIRE PARTNERSHIP NHS FOUNDATION TRUST
T57: QKK | U57: RPG | V57: OXLEAS NHS FOUNDATION TRUST | W57: Child & Adolescent Mental Health Services | Y57: RXX | Z57: SOUTHERN HEALTH NHS FOUNDATION TRUST | AB57: RXX | AC57: SOUTHERN HEALTH NHS FOUNDATION TRUST
T58: QKK | U58: RPG | V58: OXLEAS NHS FOUNDATION TRUST | W58: Primary Care | Y58: RXY | Z58: SURREY AND BORDERS PARTNERSHIP NHS FOUNDATION TRUST | AB58: RXY | AC58: SURREY AND BORDERS PARTNERSHIP NHS FOUNDATION TRUST
T59: QKK | U59: RPG | V59: OXLEAS NHS FOUNDATION TRUST | W59: Secondary Care Community Services | Y59: RY4 | Z59: SUSSEX PARTNERSHIP NHS FOUNDATION TRUST | AB59: RY4 | AC59: SUSSEX PARTNERSHIP NHS FOUNDATION TRUST
T60: QKK | U60: RPG | V60: OXLEAS NHS FOUNDATION TRUST | W60: Secure & Forensic Services | Y60: RY6 | Z60: SUTTON MENTAL HEALTH FOUNDATION | AB60: RY6 | AC60: SUTTON MENTAL HEALTH FOUNDATION
T61: QKK | U61: RPG | V61: OXLEAS NHS FOUNDATION TRUST | W61: Specialist Services | Y61: RYK | Z61: TAVISTOCK AND PORTMAN NHS FOUNDATION TRUST | AB61: RYK | AC61: TAVISTOCK AND PORTMAN NHS FOUNDATION TRUST
T62: QKK | U62: RV5 | V62: SOUTH LONDON AND MAUDSLEY NHS FOUNDATION TRUST | W62: Acute Services | Y62: TAD | Z62: TEES, ESK AND WEAR VALLEYS NHS FOUNDATION TRUST | AB62: TAD | AC62: TEES, ESK AND WEAR VALLEYS NHS FOUNDATION TRUST
T63: QKK | U63: RV5 | V63: SOUTH LONDON AND MAUDSLEY NHS FOUNDATION TRUST | W63: Child & Adolescent Mental Health Services | Y63: TAF | Z63: THE HUNTERCOMBE GROUP | AB63: TAF | AC63: THE HUNTERCOMBE GROUP
T64: QKK | U64: RV5 | V64: SOUTH LONDON AND MAUDSLEY NHS FOUNDATION TRUST | W64: Primary Care | Y64: TAH | Z64: UNIVERSITY COLLEGE LONDON HOSPITALS NHS FOUNDATION TRUST | AB64: TAH | AC64: UNIVERSITY COLLEGE LONDON HOSPITALS NHS FOUNDATION TRUST
T65: QKK | U65: RV5 | V65: SOUTH LONDON AND MAUDSLEY NHS FOUNDATION TRUST | W65: Secondary Care Community Services | Y65: TAJ | Z65: WEST LONDON NHS TRUST | AB65: TAJ | AC65: WEST LONDON NHS TRUST
T66: QKK | U66: RV5 | V66: SOUTH LONDON AND MAUDSLEY NHS FOUNDATION TRUST | W66: Secure & Forensic Services
T67: QKK | U67: RV5 | V67: SOUTH LONDON AND MAUDSLEY NHS FOUNDATION TRUST | W67: Specialist Services
T68: QKS | U68: RXY | V68: KENT AND MEDWAY NHS AND SOCIAL CARE PARTNERSHIP TRUST | W68: Acute Services
T69: QKS | U69: RXY | V69: KENT AND MEDWAY NHS AND SOCIAL CARE PARTNERSHIP TRUST | W69: Mental Health Other
T70: QKS | U70: RXY | V70: KENT AND MEDWAY NHS AND SOCIAL CARE PARTNERSHIP TRUST | W70: Secondary Care Community Services
T71: QKS | U71: RXY | V71: KENT AND MEDWAY NHS AND SOCIAL CARE PARTNERSHIP TRUST | W71: Secure & Forensic Services
T72: QKS | U72: RXY | V72: KENT AND MEDWAY NHS AND SOCIAL CARE PARTNERSHIP TRUST | W72: Specialist Services
T73: QM7 | U73: RY4 | V73: HERTFORDSHIRE COMMUNITY NHS TRUST | W73: Child & Adolescent Mental Health Services
T74: QM7 | U74: RWR | V74: HERTFORDSHIRE PARTNERSHIP UNIVERSITY NHS FOUNDATION TRUST | W74: Acute Services
T75: QM7 | U75: RWR | V75: HERTFORDSHIRE PARTNERSHIP UNIVERSITY NHS FOUNDATION TRUST | W75: Child & Adolescent Mental Health Services
T76: QM7 | U76: RWR | V76: HERTFORDSHIRE PARTNERSHIP UNIVERSITY NHS FOUNDATION TRUST | W76: Mental Health Other
T77: QM7 | U77: RWR | V77: HERTFORDSHIRE PARTNERSHIP UNIVERSITY NHS FOUNDATION TRUST | W77: Primary Care
T78: QM7 | U78: RWR | V78: HERTFORDSHIRE PARTNERSHIP UNIVERSITY NHS FOUNDATION TRUST | W78: Secondary Care Community Services
T79: QM7 | U79: RWR | V79: HERTFORDSHIRE PARTNERSHIP UNIVERSITY NHS FOUNDATION TRUST | W79: Secure & Forensic Services
T80: QM7 | U80: RWR | V80: HERTFORDSHIRE PARTNERSHIP UNIVERSITY NHS FOUNDATION TRUST | W80: Specialist Services
T81: QMF | U81: RWK | V81: EAST LONDON NHS FOUNDATION TRUST | W81: Acute Services
T82: QMF | U82: RWK | V82: EAST LONDON NHS FOUNDATION TRUST | W82: Child & Adolescent Mental Health Services
T83: QMF | U83: RWK | V83: EAST LONDON NHS FOUNDATION TRUST | W83: Mental Health Other
T84: QMF | U84: RWK | V84: EAST LONDON NHS FOUNDATION TRUST | W84: Primary Care
T85: QMF | U85: RWK | V85: EAST LONDON NHS FOUNDATION TRUST | W85: Secondary Care Community Services
T86: QMF | U86: RWK | V86: EAST LONDON NHS FOUNDATION TRUST | W86: Secure & Forensic Services
T87: QMF | U87: RWK | V87: EAST LONDON NHS FOUNDATION TRUST | W87: Specialist Services
T88: QMF | U88: RAT | V88: NORTH EAST LONDON NHS FOUNDATION TRUST | W88: Acute Services
T89: QMF | U89: RAT | V89: NORTH EAST LONDON NHS FOUNDATION TRUST | W89: Child & Adolescent Mental Health Services
T90: QMF | U90: RAT | V90: NORTH EAST LONDON NHS FOUNDATION TRUST | W90: Primary Care
T91: QMF | U91: RAT | V91: NORTH EAST LONDON NHS FOUNDATION TRUST | W91: Secondary Care Community Services
T92: QMF | U92: RAT | V92: NORTH EAST LONDON NHS FOUNDATION TRUST | W92: Specialist Services
T93: QMJ | U93: RRP | V93: BARNET, ENFIELD AND HARINGEY MENTAL HEALTH NHS TRUST | W93: Acute Services
T94: QMJ | U94: RRP | V94: BARNET, ENFIELD AND HARINGEY MENTAL HEALTH NHS TRUST | W94: Child & Adolescent Mental Health Services
T95: QMJ | U95: RRP | V95: BARNET, ENFIELD AND HARINGEY MENTAL HEALTH NHS TRUST | W95: Primary Care
T96: QMJ | U96: RRP | V96: BARNET, ENFIELD AND HARINGEY MENTAL HEALTH NHS TRUST | W96: Secondary Care Community Services
T97: QMJ | U97: RRP | V97: BARNET, ENFIELD AND HARINGEY MENTAL HEALTH NHS TRUST | W97: Secure & Forensic Services
T98: QMJ | U98: RRP | V98: BARNET, ENFIELD AND HARINGEY MENTAL HEALTH NHS TRUST | W98: Specialist Services
T99: QMJ | U99: TAF | V99: CAMDEN AND ISLINGTON NHS FOUNDATION TRUST | W99: Acute Services
T100: QMJ | U100: TAF | V100: CAMDEN AND ISLINGTON NHS FOUNDATION TRUST | W100: Primary Care
T101: QMJ | U101: TAF | V101: CAMDEN AND ISLINGTON NHS FOUNDATION TRUST | W101: Secondary Care Community Services
T102: QMJ | U102: TAF | V102: CAMDEN AND ISLINGTON NHS FOUNDATION TRUST | W102: Specialist Services
T103: QMJ | U103: RV3 | V103: CENTRAL AND NORTH WEST LONDON NHS FOUNDATION TRUST | W103: Acute Services
T104: QMJ | U104: RV3 | V104: CENTRAL AND NORTH WEST LONDON NHS FOUNDATION TRUST | W104: Child & Adolescent Mental Health Services
T105: QMJ | U105: RV3 | V105: CENTRAL AND NORTH WEST LONDON NHS FOUNDATION TRUST | W105: Mental Health Other
T106: QMJ | U106: RV3 | V106: CENTRAL AND NORTH WEST LONDON NHS FOUNDATION TRUST | W106: Primary Care
T107: QMJ | U107: RV3 | V107: CENTRAL AND NORTH WEST LONDON NHS FOUNDATION TRUST | W107: Secondary Care Community Services
T108: QMJ | U108: RV3 | V108: CENTRAL AND NORTH WEST LONDON NHS FOUNDATION TRUST | W108: Specialist Services
T109: QMJ | U109: RNK | V109: TAVISTOCK AND PORTMAN NHS FOUNDATION TRUST | W109: Mental Health Other
T110: QMJ | U110: RRV | V110: UNIVERSITY COLLEGE LONDON HOSPITALS NHS FOUNDATION TRUST | W110: Mental Health Other
T111: QMM | U111: RMY | V111: NORFOLK AND SUFFOLK NHS FOUNDATION TRUST | W111: Acute Services
T112: QMM | U112: RMY | V112: NORFOLK AND SUFFOLK NHS FOUNDATION TRUST | W112: Child & Adolescent Mental Health Services
T113: QMM | U113: RMY | V113: NORFOLK AND SUFFOLK NHS FOUNDATION TRUST | W113: Secondary Care Community Services
T114: QMM | U114: RMY | V114: NORFOLK AND SUFFOLK NHS FOUNDATION TRUST | W114: Secure & Forensic Services
T115: QMM | U115: RMY | V115: NORFOLK AND SUFFOLK NHS FOUNDATION TRUST | W115: Specialist Services
T116: QNC | U116: RRE | V116: MIDLANDS PARTNERSHIP NHS FOUNDATION TRUST | W116: Acute Services
T117: QNC | U117: RRE | V117: MIDLANDS PARTNERSHIP NHS FOUNDATION TRUST | W117: Child & Adolescent Mental Health Services
T118: QNC | U118: RRE | V118: MIDLANDS PARTNERSHIP NHS FOUNDATION TRUST | W118: Mental Health Other
T119: QNC | U119: RRE | V119: MIDLANDS PARTNERSHIP NHS FOUNDATION TRUST | W119: Primary Care
T120: QNC | U120: RRE | V120: MIDLANDS PARTNERSHIP NHS FOUNDATION TRUST | W120: Secondary Care Community Services
T121: QNC | U121: RRE | V121: MIDLANDS PARTNERSHIP NHS FOUNDATION TRUST | W121: Secure & Forensic Services
T122: QNC | U122: RRE | V122: MIDLANDS PARTNERSHIP NHS FOUNDATION TRUST | W122: Specialist Services
T123: QNC | U123: RLY | V123: NORTH STAFFORDSHIRE COMBINED HEALTHCARE NHS TRUST | W123: Acute Services
T124: QNC | U124: RLY | V124: NORTH STAFFORDSHIRE COMBINED HEALTHCARE NHS TRUST | W124: Child & Adolescent Mental Health Services
T125: QNC | U125: RLY | V125: NORTH STAFFORDSHIRE COMBINED HEALTHCARE NHS TRUST | W125: Mental Health Other
T126: QNC | U126: RLY | V126: NORTH STAFFORDSHIRE COMBINED HEALTHCARE NHS TRUST | W126: Primary Care
T127: QNC | U127: RLY | V127: NORTH STAFFORDSHIRE COMBINED HEALTHCARE NHS TRUST | W127: Secondary Care Community Services
T128: QNC | U128: RLY | V128: NORTH STAFFORDSHIRE COMBINED HEALTHCARE NHS TRUST | W128: Specialist Services
T129: QNQ | U129: RWX | V129: BERKSHIRE HEALTHCARE NHS FOUNDATION TRUST | W129: Acute Services
T130: QNQ | U130: RWX | V130: BERKSHIRE HEALTHCARE NHS FOUNDATION TRUST | W130: Child & Adolescent Mental Health Services
T131: QNQ | U131: RWX | V131: BERKSHIRE HEALTHCARE NHS FOUNDATION TRUST | W131: Mental Health Other
T132: QNQ | U132: RWX | V132: BERKSHIRE HEALTHCARE NHS FOUNDATION TRUST | W132: Primary Care
T133: QNQ | U133: RWX | V133: BERKSHIRE HEALTHCARE NHS FOUNDATION TRUST | W133: Secondary Care Community Services
T134: QNQ | U134: RWX | V134: BERKSHIRE HEALTHCARE NHS FOUNDATION TRUST | W134: Specialist Services
T135: QNX | U135: RX2 | V135: SUSSEX PARTNERSHIP NHS FOUNDATION TRUST | W135: Acute Services
T136: QNX | U136: RX2 | V136: SUSSEX PARTNERSHIP NHS FOUNDATION TRUST | W136: Child & Adolescent Mental Health Services
T137: QNX | U137: RX2 | V137: SUSSEX PARTNERSHIP NHS FOUNDATION TRUST | W137: Mental Health Other
T138: QNX | U138: RX2 | V138: SUSSEX PARTNERSHIP NHS FOUNDATION TRUST | W138: Secondary Care Community Services
T139: QNX | U139: RX2 | V139: SUSSEX PARTNERSHIP NHS FOUNDATION TRUST | W139: Secure & Forensic Services
T140: QNX | U140: RX2 | V140: SUSSEX PARTNERSHIP NHS FOUNDATION TRUST | W140: Specialist Services
T141: QOP | U141: RXV | V141: GREATER MANCHESTER MENTAL HEALTH NHS FOUNDATION TRUST | W141: Acute Services
T142: QOP | U142: RXV | V142: GREATER MANCHESTER MENTAL HEALTH NHS FOUNDATION TRUST | W142: Child & Adolescent Mental Health Services
T143: QOP | U143: RXV | V143: GREATER MANCHESTER MENTAL HEALTH NHS FOUNDATION TRUST | W143: Mental Health Other
T144: QOP | U144: RXV | V144: GREATER MANCHESTER MENTAL HEALTH NHS FOUNDATION TRUST | W144: Primary Care
T145: QOP | U145: RXV | V145: GREATER MANCHESTER MENTAL HEALTH NHS FOUNDATION TRUST | W145: Secondary Care Community Services
T146: QOP | U146: RXV | V146: GREATER MANCHESTER MENTAL HEALTH NHS FOUNDATION TRUST | W146: Secure & Forensic Services
T147: QOP | U147: RXV | V147: GREATER MANCHESTER MENTAL HEALTH NHS FOUNDATION TRUST | W147: Specialist Services
T148: QOP | U148: RT2 | V148: PENNINE CARE NHS FOUNDATION TRUST | W148: Acute Services
T149: QOP | U149: RT2 | V149: PENNINE CARE NHS FOUNDATION TRUST | W149: Child & Adolescent Mental Health Services
T150: QOP | U150: RT2 | V150: PENNINE CARE NHS FOUNDATION TRUST | W150: Mental Health Other
T151: QOP | U151: RT2 | V151: PENNINE CARE NHS FOUNDATION TRUST | W151: Primary Care
T152: QOP | U152: RT2 | V152: PENNINE CARE NHS FOUNDATION TRUST | W152: Secondary Care Community Services
T153: QOQ | U153: RV9 | V153: HUMBER TEACHING NHS FOUNDATION TRUST | W153: Acute Services
T154: QOQ | U154: RV9 | V154: HUMBER TEACHING NHS FOUNDATION TRUST | W154: Child & Adolescent Mental Health Services
T155: QOQ | U155: RV9 | V155: HUMBER TEACHING NHS FOUNDATION TRUST | W155: Mental Health Other
T156: QOQ | U156: RV9 | V156: HUMBER TEACHING NHS FOUNDATION TRUST | W156: Primary Care
T157: QOQ | U157: RV9 | V157: HUMBER TEACHING NHS FOUNDATION TRUST | W157: Secondary Care Community Services
T158: QOQ | U158: RV9 | V158: HUMBER TEACHING NHS FOUNDATION TRUST | W158: Secure & Forensic Services
T159: QOQ | U159: RV9 | V159: HUMBER TEACHING NHS FOUNDATION TRUST | W159: Specialist Services
T160: QOX | U160: RVN | V160: AVON AND WILTSHIRE MENTAL HEALTH PARTNERSHIP NHS TRUST | W160: Acute Services
T161: QOX | U161: RVN | V161: AVON AND WILTSHIRE MENTAL HEALTH PARTNERSHIP NHS TRUST | W161: Mental Health Other
T162: QOX | U162: RVN | V162: AVON AND WILTSHIRE MENTAL HEALTH PARTNERSHIP NHS TRUST | W162: Secondary Care Community Services
T163: QOX | U163: RVN | V163: AVON AND WILTSHIRE MENTAL HEALTH PARTNERSHIP NHS TRUST | W163: Secure & Forensic Services
T164: QOX | U164: RVN | V164: AVON AND WILTSHIRE MENTAL HEALTH PARTNERSHIP NHS TRUST | W164: Specialist Services
T165: QPM | U165: RP1 | V165: NORTHAMPTONSHIRE HEALTHCARE NHS FOUNDATION TRUST | W165: Acute Services
T166: QPM | U166: RP1 | V166: NORTHAMPTONSHIRE HEALTHCARE NHS FOUNDATION TRUST | W166: Child & Adolescent Mental Health Services
T167: QPM | U167: RP1 | V167: NORTHAMPTONSHIRE HEALTHCARE NHS FOUNDATION TRUST | W167: Primary Care
T168: QPM | U168: RP1 | V168: NORTHAMPTONSHIRE HEALTHCARE NHS FOUNDATION TRUST | W168: Secondary Care Community Services
T169: QPM | U169: RP1 | V169: NORTHAMPTONSHIRE HEALTHCARE NHS FOUNDATION TRUST | W169: Secure & Forensic Services
T170: QPM | U170: RP1 | V170: NORTHAMPTONSHIRE HEALTHCARE NHS FOUNDATION TRUST | W170: Specialist Services
T171: QR1 | U171: RTQ | V171: GLOUCESTERSHIRE HEALTH AND CARE NHS FOUNDATION TRUST | W171: Acute Services
T172: QR1 | U172: RTQ | V172: GLOUCESTERSHIRE HEALTH AND CARE NHS FOUNDATION TRUST | W172: Child & Adolescent Mental Health Services
T173: QR1 | U173: RTQ | V173: GLOUCESTERSHIRE HEALTH AND CARE NHS FOUNDATION TRUST | W173: Mental Health Other
T174: QR1 | U174: RTQ | V174: GLOUCESTERSHIRE HEALTH AND CARE NHS FOUNDATION TRUST | W174: Primary Care
T175: QR1 | U175: RTQ | V175: GLOUCESTERSHIRE HEALTH AND CARE NHS FOUNDATION TRUST | W175: Secondary Care Community Services
T176: QR1 | U176: RTQ | V176: GLOUCESTERSHIRE HEALTH AND CARE NHS FOUNDATION TRUST | W176: Specialist Services
T177: QRL | U177: R1F | V177: ISLE OF WIGHT NHS TRUST | W177: Primary Care
T178: QRL | U178: R1C | V178: SOLENT NHS TRUST | W178: Child & Adolescent Mental Health Services
T179: QRL | U179: R1C | V179: SOLENT NHS TRUST | W179: Mental Health Other
T180: QRL | U180: R1C | V180: SOLENT NHS TRUST | W180: Secondary Care Community Services
T181: QRL | U181: RW1 | V181: SOUTHERN HEALTH NHS FOUNDATION TRUST | W181: Acute Services
T182: QRL | U182: RW1 | V182: SOUTHERN HEALTH NHS FOUNDATION TRUST | W182: Child & Adolescent Mental Health Services
T183: QRL | U183: RW1 | V183: SOUTHERN HEALTH NHS FOUNDATION TRUST | W183: Mental Health Other
T184: QRL | U184: RW1 | V184: SOUTHERN HEALTH NHS FOUNDATION TRUST | W184: Secondary Care Community Services
T185: QRL | U185: RW1 | V185: SOUTHERN HEALTH NHS FOUNDATION TRUST | W185: Secure & Forensic Services
T186: QRL | U186: RW1 | V186: SOUTHERN HEALTH NHS FOUNDATION TRUST | W186: Specialist Services
T187: QRV | U187: RKL | V187: WEST LONDON NHS TRUST | W187: Acute Services
T188: QRV | U188: RKL | V188: WEST LONDON NHS TRUST | W188: Child & Adolescent Mental Health Services
T189: QRV | U189: RKL | V189: WEST LONDON NHS TRUST | W189: Primary Care
T190: QRV | U190: RKL | V190: WEST LONDON NHS TRUST | W190: Secondary Care Community Services
T191: QRV | U191: RKL | V191: WEST LONDON NHS TRUST | W191: Specialist Services
T192: QSL | U192: RH5 | V192: SOMERSET NHS FOUNDATION TRUST | W192: Acute Services
T193: QSL | U193: RH5 | V193: SOMERSET NHS FOUNDATION TRUST | W193: Primary Care
T194: QSL | U194: RH5 | V194: SOMERSET NHS FOUNDATION TRUST | W194: Secondary Care Community Services
T195: QT1 | U195: RHA | V195: NOTTINGHAMSHIRE HEALTHCARE NHS FOUNDATION TRUST | W195: Acute Services
T196: QT1 | U196: RHA | V196: NOTTINGHAMSHIRE HEALTHCARE NHS FOUNDATION TRUST | W196: Child & Adolescent Mental Health Services
T197: QT1 | U197: RHA | V197: NOTTINGHAMSHIRE HEALTHCARE NHS FOUNDATION TRUST | W197: Primary Care
T198: QT1 | U198: RHA | V198: NOTTINGHAMSHIRE HEALTHCARE NHS FOUNDATION TRUST | W198: Secondary Care Community Services
T199: QT6 | U199: RJ8 | V199: CORNWALL PARTNERSHIP NHS FOUNDATION TRUST | W199: Secondary Care Community Services
T200: QU9 | U200: RNU | V200: OXFORD HEALTH NHS FOUNDATION TRUST | W200: Acute Services
... 76 more rows
